Cogmind - Beta 17 @@@ ROGUE MODE // 2026.07.27 @ 01:45:13 Player: Momo Result: Destroyed 0b10! Performance ------------- Evolutions (9) 4500 Regions Visited (27) 5400 Robots Destroyed (584) 2920 Value Destroyed (37102) 37102 Prototype IDs (383) 7660 Alien Tech Used (8) 1600 Bonus (99987) 99987 TOTAL SCORE: 159169 Bonus ------- Triggered High Security 1500 High Alert Combat Kills 19172 Follower Combat Kills 2468 Network Hubs Disabled 400 Met Zhirov 300 Built Enhanced Grunts 300 A7 Reached Mainframe 300 Met R17 at Cetus 500 Found Hidden Lab 3000 Met R17 at Research 2000 Pursued by Intercept 2500 Acquired SGEMP 2000 Met Sigix 2000 Destroyed Superfortress 15000 Delivered SGEMP 2000 Recovered Sigix Corpse 2000 Escaped with Sigix 10000 Destroyed MAIN.C Guards 500 Met MAIN.C 5000 Hacked MAIN.C 300 Destroyed MAIN.C Shell 5000 Zhirov Destroyed MAIN.C 3000 Met Architect 300 Started Test 138-B 500 Destroyed A8 300 Destroyed A6 400 Destroyed A4 700 Destroyed A3 800 Destroyed A2 1000 Destroyed Architect 15000 Win 3000 Friendly Fire -1253 Cogmind --------- Core Integrity 1001/1600 Matter 191/300 Energy 3023/3029 System Corruption 1% Temperature Cool (5) Movement Treading (48) Location Tau Ceti IV Orbit Parts ------- > --- POWER (4) -------- Graviton-Particle Reactor > --- PROPULSION (8) --- Treaded Centrium Exoskeleton > --- UTILITY (9) ------ Armored Scrap Engine Huge Storage Unit Experimental Core Analyzer Improved Armor Integrity Analyzer Experimental Phase Shifter Experimental Powered Armor Thermal Barrier AEGIS Remote Shield > --- WEAPON (5) ------- Advanced Datajack Warp Kinetic Plasma Construct/C > --- INVENTORY (25) --- Advanced Cooling System Experimental Cooling System Concept Chromion Battery (800) Concept NT7 Matterbank (750) Experimental Optical Array Advanced Sensor Array Quantum Capacitor Advanced Weapon Cycler Experimental EM Shield Experimental Force Field Advanced Remote Force Field Advanced Dynamic Insulation System Core Reset Matrix Terrabomb Multirail Multirail Sigix Containment Pod Sigix Containment Pod Sigix Corpse Peak State ------------ > --- POWER ------------ Graviton-Particle Reactor > --- PROPULSION ------- Treaded Centrium Exoskeleton > --- UTILITY ---------- Armored Scrap Engine Experimental Cooling System Huge Storage Unit Experimental Core Analyzer Improved Armor Integrity Analyzer Experimental Phase Shifter Experimental Powered Armor AEGIS Remote Shield > --- WEAPON ----------- Ragnarok Missile Launcher Warp Kinetic Plasma Construct/C > --- INVENTORY -------- Advanced Cooling System Concept Chromion Battery Concept NT7 Matterbank Experimental Optical Array Advanced Sensor Array Quantum Capacitor Advanced Weapon Cycler Advanced Cloaking Device Thermal Barrier Experimental EM Shield Experimental Force Field Advanced Remote Force Field Advanced Dynamic Insulation System Transdimensional Reconstructor High-powered Transdimensional Reconstructor Core Reset Matrix Subatomic Replicator Terrabomb Terrabomb Multirail Multirail Advanced Datajack Sigix Containment Pod [Rating: 246] Favorites ----------- Power Constructs Engine Ion Engine Reactor Constructs Propulsion Constructs Treads Constructs Leg Titanium Leg Wheel Wheel Hover Unit Cooled Antigrav System Utility Armored Scrap Engine Device Armored Scrap Engine Storage Large Storage Unit Processor Improved Armor Integrity Analyzer Protection Gun Armor Weapon Constructs Energy Gun Pulse Rifle Energy Cannon Constructs Ballistic Gun Enhanced Autogun Ballistic Cannon Flak Cannon Launcher Enhanced Gamma Bomb Array Special Weapon Multitool Slashing Weapon Axe Special Melee Weapon Advanced Datajack Build | -11 -10 -10 -10 -8 -8 -8 -6 -6 -6 -6 -6 -5 -5 -5 -5 -4 -4 -4 -4 -3 -3 -2 -2 -2 -1 -1 -1 ------- Run | Yrd Mat Min Sub Mat Sto Rec Fac Ext Cet Arc Hub Fac Upp Upp Zhi Pro Fac Arm Lab Res Qua Res Tes Frg Acc Com Ac0 Slots Evolved 18 | . . . . 4 . . 4 . . . . 2 . . . . 2 . . 2 . 2 . . 2 . . Power 2 | . . . . . . . . . . . . . . . . . . . . 1 . 1 . . . . . Propulsion 6 | . . . . 3 . . 1 . . . . 1 . . . . . . . 1 . . . . . . . Utility 7 | . . . . . . . 2 . . . . . . . . . 2 . . . . 1 . . 2 . . Weapon 3 | . . . . 1 . . 1 . . . . 1 . . . . . . . . . . . . . . . Parts Attached 128 | 3 4 1 13 4 12 5 1 7 . . . 3 . 1 . . 6 2 3 8 3 17 13 3 5 11 3 Power 7 | 1 . . 2 1 2 1 . . . . . . . . . . . . . . . . . . . . . Engine 7 | 1 . . 2 1 2 1 . . . . . . . . . . . . . . . . . . . . . Core . | . . . . . . . . . . . . . . . . . . . . . . . . . . . . Reactor . | . . . . . . . . . . . . . . . . . . . . . . . . . . . . Propulsion 15 | 2 . . 3 3 4 1 . . . . . . . . . . . . . . . 2 . . . . . Treads 1 | . . . . . 1 . . . . . . . . . . . . . . . . . . . . . . Leg 2 | . . . . . . 1 . . . . . . . . . . . . . . . 1 . . . . . Wheel 11 | 2 . . 3 3 3 . . . . . . . . . . . . . . . . . . . . . . Hover 1 | . . . . . . . . . . . . . . . . . . . . . . 1 . . . . . Flight . | . . . . . . . . . . . . . . . . . . . . . . . . . . . . Utility 72 | . 2 . 3 . . 1 1 7 . . . 2 . 1 . . 5 1 3 7 3 12 7 3 3 9 2 Device 50 | . . . 1 . . 1 . 7 . . . 2 . . . . 4 1 2 5 . 10 7 2 2 4 2 Storage 6 | . 1 . 1 . . . . . . . . . . . . . . . . . 3 . . 1 . . . Processor 12 | . . . 1 . . . . . . . . . . 1 . . 1 . . 2 . 2 . . 1 4 . Hackware . | . . . . . . . . . . . . . . . . . . . . . . . . . . . . Protection 4 | . 1 . . . . . 1 . . . . . . . . . . . 1 . . . . . . 1 . Artifact . | . . . . . . . . . . . . . . . . . . . . . . . . . . . . Weapon 34 | . 2 1 5 . 6 2 . . . . . 1 . . . . 1 1 . 1 . 3 6 . 2 2 1 Energy Gun 2 | . . . . . 1 . . . . . . . . . . . . . . . . . 1 . . . . Energy Cannon 5 | . 2 . 1 . . . . . . . . . . . . . . . . . . . 2 . . . . Ballistic Gun 7 | . . . 3 . 3 . . . . . . . . . . . . . . . . . . . 1 . . Ballistic Cannon 4 | . . 1 . . . . . . . . . 1 . . . . . . . . . . 2 . . . . Launcher 11 | . . . 1 . 2 . . . . . . . . . . . 1 . . 1 . 3 1 . 1 1 . Special Weapon 2 | . . . . . . 1 . . . . . . . . . . . . . . . . . . . 1 . Impact Weapon . | . . . . . . . . . . . . . . . . . . . . . . . . . . . . Slashing Weapon 2 | . . . . . . 1 . . . . . . . . . . . 1 . . . . . . . . . Piercing Weapon . | . . . . . . . . . . . . . . . . . . . . . . . . . . . . Special Melee Weapon 1 | . . . . . . . . . . . . . . . . . . . . . . . . . . . 1 Unidentified Prototypes 49 | . 1 . . . 2 1 . 1 . . . . . . 1 . 2 1 3 3 4 13 11 1 2 3 . Parts Lost 21 | . . . 3 6 3 . . 2 . . 1 . . . . . . . . . . 1 1 . 2 . 2 Power 4 | . . . . 1 . . . 1 . . . . . . . . . . . . . . 1 . 1 . . Propulsion 6 | . . . 1 3 2 . . . . . . . . . . . . . . . . . . . . . . Utility 5 | . . . 1 . . . . . . . 1 . . . . . . . . . . 1 . . . . 2 Weapon 6 | . . . 1 2 1 . . 1 . . . . . . . . . . . . . . . . 1 . . Highest Loss Streak 3 | . . . 2 3 2 . . 2 . . 1 . . . . . . . . . . 1 1 . 2 . 1 To Critical Strikes 1 | . . . . . . . . . . . . . . . . . . . . . . . . . . . 1 Average Backups 15 | . 1 10 17 30 33 17 11 12 12 12 10 9 10 10 9 10 5 5 4 4 9 20 20 19 20 21 19 Power . | . . . 1 1 2 . . . . . . . . . . . . . . . . . . . . . . Propulsion 2 | . . 1 2 6 10 5 1 1 2 3 3 3 3 3 3 3 . . . . . . . . . . . Utility 7 | . 1 6 6 9 7 4 5 8 9 9 7 6 7 7 6 6 4 4 4 3 5 11 12 11 10 12 12 Weapon 3 | . . 2 5 11 11 5 3 2 . . . . . . . . . . . . . . 1 2 4 3 2 Tool/Special . | . . . . . . . . . . . . . . . . . . . . . . . . . . . . Unused Backups 69 | . . 2 1 1 5 21 6 2 4 . 2 . . . . 1 3 . . 1 . 5 3 3 . 1 8 Power . | . . . . . . . . . . . . . . . . . . . . . . . . . . . . Propulsion 21 | . . . 1 . . 10 2 . 2 . . . . . . . 3 . . . . 3 . . . . . Utility 22 | . . 2 . . 2 4 1 . . . 2 . . . . 1 . . . 1 . . 3 2 . . 4 Weapon 22 | . . . . 1 3 6 3 2 2 . . . . . . . . . . . . 1 . 1 . 1 2 Tool/Special 4 | . . . . . . 1 . . . . . . . . . . . . . . . 1 . . . . 2 Average Slot Usage (%) 53 | . 72 100 92 65 77 61 40 40 40 40 40 36 41 41 41 41 35 35 37 39 40 40 40 41 39 41 43 Engine 5 | . 14 14 14 8 9 7 5 6 6 6 6 4 . . . . . . . . . . . . . . . Reactor 1 | . . . . . . . . . . . . . 5 5 5 5 5 5 5 4 4 4 4 4 3 3 3 Treads 2 | . . . . . 3 3 . 1 . . . . . . . . . . . 2 4 2 4 4 3 3 3 Wheel 9 | . 28 28 28 29 34 20 . . . . . . . . . . . . . . . . . . . . . Flight 1 | . . . . . . . . 2 6 6 6 5 5 5 5 5 5 5 5 . . . . . . . . Device 8 | . . . 3 . . 4 5 12 13 13 13 11 11 8 7 11 14 14 15 15 9 11 11 12 15 12 14 Storage 5 | . 10 14 13 9 9 4 4 6 6 6 6 5 5 5 5 5 . . . . 3 4 4 4 3 3 3 Processor 2 | . . . . . . . . . . . . . . 2 3 . . . . 5 9 8 8 8 7 10 7 Protection 1 | . 5 14 3 . . . 4 . . . . . . . . . . . 1 1 . . . . . . 3 Energy Cannon 2 | . 12 20 1 . . 1 . . . . . . 1 5 5 5 5 5 5 3 4 4 4 2 2 3 3 Ballistic Gun 2 | . . . 12 13 16 3 . . . . . . . . . . . . . . . . . . . . . Ballistic Cannon 3 | . . 7 13 2 . 1 4 6 6 6 6 5 9 5 5 5 1 . . . . . . 1 . . . Launcher 2 | . . . . 2 1 2 4 . . . . . . . . . 3 4 5 4 4 4 3 4 . 1 . Peak Build Rating 246 | 3 12 15 19 27 29 48 87 90 91 93 94 107 110 110 112 113 134 133 134 174 179 221 226 231 241 246 245 Average Rating 106 | 2 7 13 16 22 25 32 75 81 90 92 91 94 107 110 110 112 131 132 126 155 172 202 218 226 222 230 236 On Entrance 107 | . 3 12 15 18 23 29 47 82 89 91 91 92 107 110 110 112 113 133 126 131 172 179 218 226 227 216 245 Avg Prop Armor Cover (%) 5 | . . . 4 . 4 5 . . . . . . . . . . . . . . . . . . . . . Naked Turns . | . . . . . . . . . . . . . . . . . . . . . . . . . . . . Heaviest Build 265 | 5 38 40 215 218 219 217 75 74 62 74 74 74 69 69 69 69 69 54 61 87 163 215 231 263 265 244 244 Greatest Support 578 | 20 20 20 30 66 56 80 78 146 123 123 123 123 151 151 151 151 151 151 151 273 236 458 578 578 578 578 578 Greatest Overweight (x) 10 | . 1 1 10 10 5 9 1 . . . . . . . . . . . . . . 1 . . . . . Average Overweight (x) . | . . 1 3 4 3 1 . . . . . . . . . . . . . . . . . . . . . Largest Inventory Capacity 35 | 5 15 15 35 35 35 35 15 15 15 15 15 15 15 15 15 15 15 5 5 5 25 25 25 25 25 25 25 Average Capacity 19 | 5 12 15 24 35 35 18 14 15 15 15 15 15 15 15 15 15 5 5 5 5 20 25 25 25 25 25 25 Most Carried 35 | . 4 15 31 35 35 35 15 15 15 15 15 15 15 15 15 15 13 5 5 5 19 25 25 25 25 25 24 Average Carried 17 | . 1 12 18 31 34 18 12 14 14 14 14 14 15 15 14 15 5 5 4 4 11 23 24 24 23 23 22 Final Capacity 35 | 5 15 15 35 35 35 5 15 15 15 15 15 15 15 15 15 15 5 5 5 5 25 25 25 25 25 25 25 Final Carried 35 | . 4 15 31 35 35 5 15 15 15 15 14 15 15 15 15 15 5 5 5 5 19 25 25 24 24 24 22 Scrap Engine Consumption 214 | . . . . . . 54 30 16 13 1 3 . . . . . 4 13 4 26 1 17 14 10 1 7 . Constructs Created 6 | . . . . . . 3 1 1 . . . 1 . . . . . . . . . . . . . . . Constructs Modified 92 | . . . . . . 19 7 9 . . . 4 3 . . . . . . 23 . 13 7 5 2 . . Class Distribution -------------------- 26% | Construct 22% | Commander-Construct 20% | Generator-Construct 8% | Mutant 8% | Hauler-Mutant 6% | Commander-Mutant 5% | Commander-Gunner Dominant Class ---------------- Mutant | -10/Materials Mutant | -10/Mines Mutant | -10/Subcaves Hauler-Mutant | -8/Materials Hauler-Mutant | -8/Storage Commander-Construct | -8/Recycling Construct | -6/Factory Commander-Construct | -6/Extension Commander-Construct | -6/Cetus Commander-Construct | -6/Archives Commander-Construct | -6/Hub_04(d) Construct | -5/Factory Construct | -5/Upper Caves Construct | -5/Upper Caves Construct | -5/Zhirov Construct | -4/Proximity Caves Construct | -4/Factory Construct | -4/Armory Construct | -4/Lab Construct | -3/Research Construct | -3/Quarantine Generator-Construct | -2/Research Construct | -2/Testing Generator-Construct | -2/Protoforge Generator-Construct | -1/Access Generator-Construct | -1/Command Generator-Construct | -1/Access_0 Resources | -11 -10 -10 -10 -8 -8 -8 -6 -6 -6 -6 -6 -5 -5 -5 -5 -4 -4 -4 -4 -3 -3 -2 -2 -2 -1 -1 -1 ----------- Run | Yrd Mat Min Sub Mat Sto Rec Fac Ext Cet Arc Hub Fac Upp Upp Zhi Pro Fac Arm Lab Res Qua Res Tes Frg Acc Com Ac0 Matter Collected 15992 | 230 . 205 620 322 454 110 987 1347 286 194 624 407 88 121 . 59 200 508 85 938 203 1672 1396 1012 1860 1518 546 Remotely . | . . . . . . . . . . . . . . . . . . . . . . . . . . . . Salvage Created 43052 | . . 178 289 233 489 671 1032 1488 196 75 704 418 . 54 . 10 217 590 85 3048 823 6296 3820 3981 7704 7450 3201 Parts 1766 | . . 14 29 16 29 26 58 48 11 3 30 16 . 2 . . 11 26 6 99 49 258 142 138 319 261 175 Haulers Intercepted 25 | . . . . 1 2 . 1 . . . 1 1 . . . . 1 . . 4 1 8 1 . 4 . . Recyclers Shooed 5 | . . . . 1 . . . 2 . . . . . . . . . . . 1 . . 1 . . . . Parts Field Recycled 41 | . . . . . . . . 24 . 8 . 9 . . . . . . . . . . . . . . . Retrieved Matter 651 | . . . . . . . . 341 . 112 . 198 . . . . . . . . . . . . . . . Parts Self-Destructed 11 | . . . 7 . . . . . . . . . . 4 . . . . . . . . . . . . . Prevented . | . . . . . . . . . . . . . . . . . . . . . . . . . . . . Parts Restored . | . . . . . . . . . . . . . . . . . . . . . . . . . . . . Kills | -11 -10 -10 -10 -8 -8 -8 -6 -6 -6 -6 -6 -5 -5 -5 -5 -4 -4 -4 -4 -3 -3 -2 -2 -2 -1 -1 -1 ------- Run | Yrd Mat Min Sub Mat Sto Rec Fac Ext Cet Arc Hub Fac Upp Upp Zhi Pro Fac Arm Lab Res Qua Res Tes Frg Acc Com Ac0 Combat Hostiles Destroyed 445 | . . 4 14 10 10 5 15 12 3 1 4 5 . 2 . 1 1 8 1 23 5 61 34 40 83 70 33 Melee 1 | . . . . . . . . . . . . . . . . . . 1 . . . . . . . . . Guns 23 | . . . 3 7 8 5 . . . . . . . . . . . . . . . . . . . . . Cannons 400 | . . 4 9 1 . . 11 12 3 1 3 5 . 2 . 1 1 6 1 18 5 61 32 40 82 70 32 AOE 16 | . . . 2 2 2 . 4 . . . . . . . . . . . . 5 . . . . 1 . . Classes Destroyed 30 | . . 2 4 2 2 3 3 3 . . . 1 . . . 1 . 1 . . 1 2 3 . 1 1 . Worker 11 | . . . . . 1 . 2 . . . 2 . . . . . . . . . 1 1 1 1 2 . . Builder 3 | . . . . . . 1 1 . . . . . . . . . . . . . . . . . 1 . . Tunneler 5 | . . 2 . . . . . . . . . . . . . . 1 . . 2 . . . . . . . Hauler 25 | . . . . 1 2 . 1 . . . 1 1 . . . . 1 . . 4 1 8 1 . 4 . . Recycler 21 | . . . . 1 . 1 . 5 . . . 1 . . . . . . . 7 . 2 1 . 2 1 . Carrier 6 | . . . . . . . . . . . . . . . . . . . . . . 1 . 2 . 3 . Mechanic 2 | . . . . . 1 . . . . . . . . . . . . . . . . . . . 1 . . Operator 15 | . . . . . . . . . . . . 1 . . . . 2 . . 1 3 1 3 2 2 . . Drone 1 | . . . . . . . . . . . . . . . . 1 . . . . . . . . . . . Watcher 31 | . . . . . . . . 1 . . 1 . . . . . . . . 3 2 5 3 1 11 4 . Swarmer 74 | . . . 4 6 2 . 4 . . . . 4 . 2 . . . . . 5 . 5 4 9 19 10 . Saboteur 8 | . . . . . . . . . . . . . . . . . . 1 . . . . . 2 1 4 . Grunt 129 | . . 4 . 3 5 1 4 5 1 . 1 . . . . . . 5 . 9 1 22 9 14 17 28 . Brawler 8 | . . . . . . . . . . . . . . . . . . . . . . 1 1 3 1 2 . Duelist 12 | . . . . . . . . 1 . . 1 . . . . . . . . . . 1 . . 1 8 . Protector 7 | . . . . . . 1 . . . . 1 . . . . . . . . . . . . 2 2 1 . Researcher 13 | . . . . . . . . . . . . . . . . . . . . . 4 . 7 2 . . . Sentry 42 | . . . 1 1 3 1 3 4 . 1 1 1 . . . . 1 1 . 7 . 7 2 2 4 2 . Demolisher 7 | . . . . . . . . . . . . . . . . . . . . . . . . . 6 1 . Specialist 8 | . . . . . . . 1 . . . . . . . . . . . . . . . 3 . 4 . . Hunter 25 | . . . . . . . 2 1 . . . . . . . . . . . . 2 8 . . 10 2 . Programmer 28 | . . . . . . 1 1 . . . . . . . . . . . . 1 2 10 6 4 2 1 . Heavy 9 | . . . . . . . 2 . . . . . . . . . . 1 . . . . . . 5 1 . Behemoth 10 | . . . . . . . . 1 . . . . . . . . . . . 1 . 3 . . 5 . . Cetus Guard 2 | . . . . . . . . . 2 . . . . . . . . . . . . . . . . . . M Guard 2 | . . . . . . . . . . . . . . . . . . . . . . . . . . 2 . Enhanced Grunt 20 | . . . . . . . . . . . 2 . . . . . . . . . . . . . . . 18 Enhanced Sentry 2 | . . . . . . . . . . . . . . . . . . . . . . . . . . . 2 Enhanced Hunter 7 | . . . . . . . . . . . . . . . . . . . . . . . . . . . 7 Tracker 8 | . . . . . . . . . . . . . . . . . . . . . . 2 2 2 2 . . Combat Programmer 9 | . . . . . . . . . . . . . . . . . . . . . . 2 2 1 2 2 . Investigator 1 | . . . . . . . . . . . . . . . . . . . . . . . . . . 1 . Striker 5 | . . . . . . . . . . . . . . . . . . . . . . . 2 . 2 1 . Executioner 4 | . . . . . . . . . . . . . . . . . . . . . . . . . . 4 . Superbehemoth 1 | . . . . . . . . . . . . . . . . . . . . . . . 1 . . . . Alpha 7 1 | . . . . . . . . . . . . . . . . . . . . . . . 1 . . . . Fortress 1 | . . . . . . . . . . . . . . . . . . . . . . . 1 . . . . Artisan 1 | . . . 1 . . . . . . . . . . . . . . . . . . . . . . . . Subdweller 10 | . . . 9 . . 1 . . . . . . . . . . . . . . . . . . . . . Thug 2 | . . . . . . . . . . . 2 . . . . . . . . . . . . . . . . Best Kill Streak 31 | . . 3 3 5 4 3 4 4 1 1 4 4 . 2 . 1 1 5 1 13 4 14 14 9 26 31 6 Combat Bots Only 27 | . . 2 3 4 3 3 3 3 1 1 3 4 . 2 . 1 1 5 1 5 2 9 12 9 19 27 6 Max Kills in Single Turn 5 | . . 1 2 1 2 2 4 1 1 1 2 1 . 1 . 1 1 1 1 5 1 1 1 1 2 2 1 Gunslinging 1 | . . . . . . 1 . . . . . . . . . . . . . . . . . . . . . Exploded 5 | . . . 2 1 1 . 3 . . . . . . . . . . . . 5 . . . . 1 . . Melee 1 | . . . . . . . . . . . . . . . . . . 1 . . . . . . . . . Uniques/NPCs Destroyed 9 | . . . . . . . . . . . . . . . . . . . 1 . . . . 1 . 1 6 A5 (-4/Lab) Superfortress (-2/Protoforge) MAIN.C Shell (-1/Command) A8 (-1/Access_0) A6 (-1/Access_0) A2 (-1/Access_0) A4 (-1/Access_0) Architect (-1/Access_0) A3 (-1/Access_0) Combat | -11 -10 -10 -10 -8 -8 -8 -6 -6 -6 -6 -6 -5 -5 -5 -5 -4 -4 -4 -4 -3 -3 -2 -2 -2 -1 -1 -1 -------- Run | Yrd Mat Min Sub Mat Sto Rec Fac Ext Cet Arc Hub Fac Upp Upp Zhi Pro Fac Arm Lab Res Qua Res Tes Frg Acc Com Ac0 Hostile Shots Fired 1309 | . . 7 43 46 47 8 172 126 14 4 30 15 18 51 . . 14 14 21 28 6 43 67 23 48 24 440 Missed 563 | . . . 11 11 13 3 71 42 5 2 8 6 9 20 . . 6 7 8 5 2 13 19 9 21 9 263 Hits 746 | . . 7 32 35 34 5 101 84 9 2 22 9 9 31 . . 8 7 13 23 4 30 48 14 27 15 177 Melee 2 | . . . . . . . . 1 . . . . . . . . . 1 . . . . . . . . . Projectile 744 | . . 7 32 35 34 5 101 83 9 2 22 9 9 31 . . 8 6 13 23 4 30 48 14 27 15 177 AOE 12 | . . . 5 . . . 1 . . . . . . . . . . 1 . . . . 4 . 1 . . Critical Strikes 30 | . . . . 2 . . . 1 1 1 . . . . . . . 1 . . 1 1 5 4 1 1 11 Part Disruptions 1 | . . . . . . . . . . . . . . . . . . . . . . . . . . . 1 Damage Taken 13177 | . . 97 787 616 553 95 997 821 163 51 973 143 144 479 . . 186 239 330 659 94 641 1128 304 876 653 2148 Core 1199 | . . . 135 84 98 . 77 43 14 . 93 . . 63 . . 18 14 27 27 . 45 57 24 98 54 228 Absorbed by Shields 2729 | . . . . . . . 118 151 62 . . . . . . . . . . . . . 229 73 11 . 2085 Reduced by Siege Mode 11 | . . . . . . . . . . . . . . . . . . . . 11 . . . . . . . Ignored by Resistances 342 | . . . . . . . . . . . . . . . . . . . . . . . . . . . 342 Regen/Repaired (Parts) 6041 | . . . . . 21 5 206 1223 3 . . 749 295 . . . . . . 1649 . 87 1202 204 397 . . Core Remaining (%) 79 | 100 . . 46 . . 66 . . . . 73 . . . . 93 . . 88 . 97 . . 91 . . 62 Volleys Fired 1399 | . . 12 49 28 36 15 61 69 17 6 38 13 5 9 . 1 45 45 28 90 36 158 127 85 192 156 78 Largest 3 | . . 2 2 3 3 2 2 1 1 1 1 1 2 1 . 1 1 1 1 1 1 1 1 1 1 1 1 Hottest 276 | . . 136 105 90 118 217 141 140 140 140 140 140 191 92 . 92 92 276 92 92 92 92 92 92 85 85 85 Shots Fired 1516 | . . 24 78 52 77 22 63 69 17 6 38 13 7 9 . 1 45 45 28 90 36 158 127 85 192 156 78 Gun 167 | . . . 38 39 73 17 . . . . . . . . . . . . . . . . . . . . . Cannon 1326 | . . 24 39 9 . 5 57 67 17 6 38 13 7 9 . 1 45 45 28 89 36 158 126 85 191 153 78 Launcher 20 | . . . 1 4 4 . 6 2 . . . . . . . . . . . 1 . . 1 . 1 . . Special 3 | . . . . . . . . . . . . . . . . . . . . . . . . . . 3 . Kinetic 877 | . . 10 69 48 68 10 54 67 17 6 38 13 5 . . . . . . 5 . . . 45 191 153 78 Thermal 620 | . . 14 8 . 9 12 3 . . . . . 2 9 . 1 45 45 28 84 36 158 126 40 . . . Explosive 6 | . . . 1 4 . . . . . . . . . . . . . . . 1 . . . . . . . Electromagnetic 10 | . . . . . . . 6 2 . . . . . . . . . . . . . . 1 . 1 . . Robot Hit Streak 123 | . . 9 19 20 12 9 10 8 11 4 4 5 5 2 . 3 12 15 7 12 18 33 56 74 102 123 38 Robot Miss Streak 5 | . . 4 5 4 4 2 3 5 4 1 1 2 1 3 . . . 3 4 4 . . . . . 2 . Penetration Max 1 | . . . . . . . . . . . . . . . . . . . . 1 . . . . . . . Secondary Targets 5 | . . . . 1 3 1 . . . . . . . . . . . . . . . . . . . . . Max Gunslinging Chain 1 | . . . . 1 1 1 . . . . . . . . . . . . . . . . . . . . . Capacitor 302 | . . . . . . . . . . . . . . . . . . . . . . . . . 149 153 . Shots Hit Robots 489 | . . 16 54 35 49 27 32 35 11 4 9 8 3 3 . 1 9 10 13 20 6 15 23 18 28 32 28 Core Hits 496 | . . 14 37 18 25 17 21 16 3 1 21 5 . 1 . . 2 4 2 33 5 59 32 31 67 51 31 Critical Kills 1 | . . . . . . . . . . . . . . . . . . . . . . . 1 . . . . Critical Parts Destroyed 1 | . . . . . . . . . . . . . 1 . . . . . . . . . . . . . . Critical Strikes 3 | . . . 1 . . . . . . . . . 1 . . . . . . . . . 1 . . . . Meltdown 1 | . . . . . . . . . . . . . . . . . . . . . . . 1 . . . . Destroy 2 | . . . 1 . . . . . . . . . 1 . . . . . . . . . . . . . . Melee Attacks 18 | . . . . . . 17 . . . . . . . . . . . . . . . . . . . . 1 Impact . | . . . . . . . . . . . . . . . . . . . . . . . . . . . . Slashing 17 | . . . . . . 17 . . . . . . . . . . . . . . . . . . . . . Piercing . | . . . . . . . . . . . . . . . . . . . . . . . . . . . . Sneak Attacks 2 | . . . . . . 2 . . . . . . . . . . . . . . . . . . . . . Combat Hostiles . | . . . . . . . . . . . . . . . . . . . . . . . . . . . . Follow-up Attacks . | . . . . . . . . . . . . . . . . . . . . . . . . . . . . Damage Inflicted 257397 | . . 330 1220 1010 1154 1197 4085 5459 1889 614 2777 1398 351 547 . 158 1646 2192 1784 10561 3636 27286 19216 26837 61949 50810 29291 Guns 1782 | . . . 429 400 751 202 . . . . . . . . . . . . . . . . . . . . . Cannons 251087 | . . 330 704 145 . . 3622 5424 1889 614 2181 1398 351 547 . 158 1646 2192 1784 10070 3581 27286 19216 26837 61011 50810 29291 Explosions 3533 | . . . 87 465 403 . 463 35 . . 596 . . . . . . . . 491 55 . . . 938 . . Melee 995 | . . . . . . 995 . . . . . . . . . . . . . . . . . . . . . Ramming . | . . . . . . . . . . . . . . . . . . . . . . . . . . . . Kinetic 175108 | . . 146 1113 545 1051 83 3286 5424 1889 614 2181 1398 128 . . . . . . 693 . . . 15445 61011 50810 29291 Thermal 78569 | . . 184 20 . 103 119 561 16 . . 36 . 223 547 . 158 1646 2192 1784 9377 3581 27286 19216 11392 128 . . Explosive 1731 | . . . 87 465 . . . . . . . . . . . . . . . 491 . . . . 688 . . Electromagnetic 994 | . . . . . . . 238 19 . . 560 . . . . . . . . . 55 . . . 122 . . Impact . | . . . . . . . . . . . . . . . . . . . . . . . . . . . . Slashing 995 | . . . . . . 995 . . . . . . . . . . . . . . . . . . . . . Piercing . | . . . . . . . . . . . . . . . . . . . . . . . . . . . . Highest Corruption 9 | . . . . . . . . . . . 9 . . . . . . . 3 1 . 5 4 8 1 1 1 Average Corruption 1 | . . . . . . . . . . . 3 . . . . . . . 2 1 . 1 2 3 1 1 1 Corruption Purged 21 | . . . . . . . . . . . . . . . . . . . . 1 . 1 11 7 . 1 . Corruption Blocked . | . . . . . . . . . . . . . . . . . . . . . . . . . . . . Effects 24 | . . . . . . . . . . . . . . . . . . . 3 1 . 2 3 2 3 4 6 Message Errors 6 | . . . . . . . . . . . . . . . . . . . 2 1 . . 2 . . . 1 Matter Fused 8 | . . . . . . . . . . . . . . . . . . . . . . 2 . . 2 2 2 Heat Flow Errors 4 | . . . . . . . . . . . . . . . . . . . . . . . . 1 . 2 1 Energy Discharges 2 | . . . . . . . . . . . . . . . . . . . . . . . 1 . . . 1 Data Loss (minor) 4 | . . . . . . . . . . . . . . . . . . . 1 . . . . 1 1 . 1 Overload Shots 1 | . . . . . . . . . . . . . . . . . . 1 . . . . . . . . . Overflow Damage 72721 | . . . . 58 . 234 433 1088 223 106 714 315 158 282 . 128 786 382 261 1806 1674 5981 5157 8082 20542 15779 8532 Projectiles 72224 | . . . . . . . 410 1072 223 106 663 315 158 282 . 128 786 382 261 1801 1674 5981 5157 8082 20432 15779 8532 Explosions 263 | . . . . 58 . . 23 16 . . 51 . . . . . . . . 5 . . . . 110 . . Melee 234 | . . . . . . 234 . . . . . . . . . . . . . . . . . . . . . Knockbacks 93 | . . 4 9 1 . . 7 6 1 . 4 . 3 . . . . . . . . . . 5 12 11 30 Impact . | . . . . . . . . . . . . . . . . . . . . . . . . . . . . Kinetic 85 | . . 3 9 1 . . 7 6 1 . 2 . 2 . . . . . . . . . . 4 12 10 28 Secondary 8 | . . 1 . . . . . . . . 2 . 1 . . . . . . . . . . 1 . 1 2 Self-Inflicted Damage 943 | . . . 39 177 73 . 5 91 . . 241 . . . . . . . . . . . 102 . 215 . . Shots 26 | . . . 1 4 3 . 1 3 . . 3 . . . . . . . . . . . 5 . 6 . . Rammed . | . . . . . . . . . . . . . . . . . . . . . . . . . . . . Targets Rammed . | . . . . . . . . . . . . . . . . . . . . . . . . . . . . Kicked . | . . . . . . . . . . . . . . . . . . . . . . . . . . . . Crushed . | . . . . . . . . . . . . . . . . . . . . . . . . . . . . Highest Temperature 551 | . . 276 3 28 294 407 377 484 483 350 486 300 234 356 . 68 252 327 195 492 84 413 551 94 419 410 133 Average Temperature 103 | . . 105 3 9 135 131 148 131 134 159 137 112 89 146 . 44 92 112 121 87 43 82 112 21 96 74 30 Received Heat Transfer 1237 | . . 60 45 198 180 36 91 242 13 . 45 . . . . . 48 21 . 117 . . 72 56 . 9 4 Effects 33 | . . . . . 1 2 1 4 1 1 3 1 . 2 . . . 2 . 2 . 1 5 . 7 . . Shutdowns 8 | . . . . . . 1 . . 1 1 1 . . . . . . . . 1 . 1 1 . 1 . . Energy Bleed 9 | . . . . . . 1 1 2 . . . . . 1 . . . 1 . . . . 2 . 1 . . Interference 8 | . . . . . 1 . . . . . 2 1 . . . . . 1 . . . . . . 3 . . Matter Decay 2 | . . . . . . . . 1 . . . . . . . . . . . . . . 1 . . . . Short Circuit 3 | . . . . . . . . . . . . . . . . . . . . 1 . . . . 2 . . Damage (minor) 3 | . . . . . . . . 1 . . . . . 1 . . . . . . . . 1 . . . . Siege Activations 2 | . . . . . . . . . . . . . . . . . . . . 2 . . . . . . . Total Turns 46 | . . . . . . . . . . . . . . . . . . . . 46 . . . . . . . Longest Duration 31 | . . . . . . . . . . . . . . . . . . . . 31 . . . . . . . Martial Activations . | . . . . . . . . . . . . . . . . . . . . . . . . . . . . Shielding Activations . | . . . . . . . . . . . . . . . . . . . . . . . . . . . . Robots Disrupted 1 | . . . . . . . . . . . . . . . . . . . . . . . . . 1 . . Combat Hostiles . | . . . . . . . . . . . . . . . . . . . . . . . . . . . . Robots Corrupted 5 | . . . . . . . . . . . 4 . . . . . . . . . . . . . . . 1 Combat Hostiles 2 | . . . . . . . . . . . 1 . . . . . . . . . . . . . . . 1 Parts Fried 14 | . . . . . . . . . . . 11 . . . . . . . . . . . . . . . 3 Impact Corruptions 7 | . . . . . . . . . . . 3 . . . . . . . . . . . . . . . 4 Robots Melted 3 | . . . . . . . . . . . . . . . . . . 1 . . . . 2 . . . . Combat Hostiles 3 | . . . . . . . . . . . . . . . . . . 1 . . . . 2 . . . . Parts Melted 21 | . . . . . . . 6 1 . . . . . . . . 1 2 . 1 1 4 3 2 . . . Heat Transferred 15272 | . . 333 37 . 222 232 350 50 . . 100 . 50 150 . 50 450 580 625 1702 666 4736 3352 1475 112 . . Parts Sabotaged 1 | . . . . . . . . . . . . . . . . . . 1 . . . . . . . . . Parts Stolen . | . . . . . . . . . . . . . . . . . . . . . . . . . . . . Parts Stripped . | . . . . . . . . . . . . . . . . . . . . . . . . . . . . Power Chain Reactions 6 | . . . . . . . 1 1 . . 1 . . . . . . . . . 1 . 1 . 1 . . Alert | -11 -10 -10 -10 -8 -8 -8 -6 -6 -6 -6 -6 -5 -5 -5 -5 -4 -4 -4 -4 -3 -3 -2 -2 -2 -1 -1 -1 ------- Run | Yrd Mat Min Sub Mat Sto Rec Fac Ext Cet Arc Hub Fac Upp Upp Zhi Pro Fac Arm Lab Res Qua Res Tes Frg Acc Com Ac0 Maximum Alert Level 5 | . . . . . . . 2 1 1 . 4 3 . . . . 2 3 . 2 2 5 5 5 5 5 . Low Security (%) 50 | 100 100 100 . 100 100 100 22 61 64 100 8 . . . . . 66 . . 30 . . . . . 51 . Level 1 11 | . . . . . . . 22 38 35 . 7 . . . . . 27 38 . 11 79 6 . . . . . Level 2 10 | . . . . . . . 55 . . . 36 . . . . . 6 17 . 57 20 25 . . . . . Level 3 7 | . . . . . . . . . . . 43 100 . . . . . 43 . . . 27 18 13 . . . Level 4 8 | . . . . . . . . . . . 4 . . . . . . . . . . 35 36 63 21 . . Level 5 6 | . . . . . . . . . . . . . . . . . . . . . . 6 45 4 64 11 . High Security 3 | . . . . . . . . . . . . . . . . . . . . . . . . 18 13 36 . Max Security . | . . . . . . . . . . . . . . . . . . . . . . . . . . . . Peak Influence 4076 | . . 50 . 126 157 110 463 347 324 193 1494 807 . . . . 437 999 . 628 520 1689 1764 1815 3616 4076 . Initial 2313 | . . . . 29 44 45 . 217 179 76 49 731 . . . . . 210 . . 305 286 949 965 1100 2313 . Average 561 | . . 15 . 72 73 6 310 184 179 152 642 762 . . . . 190 559 . 387 369 959 1446 1371 2261 3011 . Influence Increases 18380 | . . 125 110 351 348 249 1146 938 502 177 1829 183 90 155 . 5 651 1149 . 977 375 2071 1201 1104 2806 1838 . Destroy 0b10 Robot/C 9380 | . . 80 100 200 200 80 500 420 220 80 380 100 . 40 . . 20 320 . 460 180 1240 820 840 1640 1460 . Destroy 0b10 Robot/NC 690 | . . 10 . 10 20 65 35 30 10 . 35 15 . . . 5 20 . . 85 35 85 45 30 125 30 . Destroy Leader 1778 | . . 20 10 42 44 . 134 42 10 . 94 22 . 10 . . 12 50 . 124 26 334 118 132 360 194 . Allied During Kill 1783 | . . . . . 5 72 219 305 240 80 397 . . . . . . 165 . . . . . . 300 . . Successful Hack 381 | . . . . . 8 26 16 14 12 . 15 17 . . . . 77 18 . 99 . 79 . . . . . Disable Machine 1410 | . . . . 45 30 . 150 60 . 15 360 . . . . . . 195 . 60 120 60 90 15 165 45 . Anti-Garrison Action 300 | . . . . . . . . . . . 300 . . . . . . . . . . . . . . . . Destroy Structure 1158 | . . . . 9 41 6 47 22 10 2 218 14 . . . . 72 56 . 104 14 63 98 87 201 94 . Partial Spotted 180 | . . . . . . . 15 . . . . . . . . . 60 . . 45 . 30 15 . . 15 . Lose Combat Pursuer 720 | . . 15 . 45 . . 30 45 . . 30 15 90 105 . . 90 45 . . . 180 15 . 15 . . Active Sensor Use 600 | . . . . . . . . . . . . . . . . . 300 300 . . . . . . . . . Influence Decreases 14301 | . . 110 67 303 336 365 705 1060 632 225 478 903 348 179 492 5 222 589 989 434 408 892 1174 1005 1017 1363 . Entered New Map 7584 | . . . 8 29 62 73 2 226 142 115 94 763 288 99 492 . . 219 989 . 238 224 740 751 727 1303 . Time Decay 5094 | . . 110 49 120 244 272 353 565 350 70 214 140 60 80 . 5 222 150 . 434 170 498 404 254 270 60 . Lost Part 170 | . . . 10 60 30 . . 20 . . 10 . . . . . . . . . . 10 10 . 20 . . Lost Ally 1000 | . . . . . . 20 350 40 140 40 160 . . . . . . 220 . . . 10 20 . . . . Purge Threat 453 | . . . . 94 . . . 209 . . . . . . . . . . . . . 150 . . . . . Squads Dispatched 117 | . 1 1 . 1 1 . 7 3 . . 9 2 . . . . 6 9 . 9 3 16 9 11 13 16 . Investigation 13 | . 1 1 . . . . . 1 . . . . . . . . 3 3 . 2 1 1 . . . . . Extermination 18 | . . . . . . . 1 . . . 1 1 . . . . 2 2 . . 1 5 3 1 1 . . Reinforcement 35 | . . . . 1 1 . 6 2 . . 3 1 . . . . 1 3 . 4 1 4 1 . 6 1 . Assault 39 | . . . . . . . . . . . 5 . . . . . . 1 . . . 3 1 9 5 15 . Garrison 5 | . . . . . . . . . . . . . . . . . . . . . . 2 3 . . . . Intercept 7 | . . . . . . . . . . . . . . . . . . . . 3 . 1 1 1 1 . . Searches Triggered . | . . . . . . . . . . . . . . . . . . . . . . . . . . . . Construction Impeded 2 | . . . . . 1 . 1 . . . . . . . . . . . . . . . . . . . . Haulers Reinforced 7 | . . . . . . . . . . . 1 . . . . . 1 . . 1 . 3 . . 1 . . Active Scanning Responses 6 | . . . . . . . . . . . . . . . . . 3 3 . . . . . . . . . Cargo Convoy Interrupts . | . . . . . . . . . . . . . . . . . . . . . . . . . . . . Stealth | -11 -10 -10 -10 -8 -8 -8 -6 -6 -6 -6 -6 -5 -5 -5 -5 -4 -4 -4 -4 -3 -3 -2 -2 -2 -1 -1 -1 --------- Run | Yrd Mat Min Sub Mat Sto Rec Fac Ext Cet Arc Hub Fac Upp Upp Zhi Pro Fac Arm Lab Res Qua Res Tes Frg Acc Com Ac0 Distress Signals 28 | . . . . . . 2 2 2 2 . 3 . . . . . 3 2 . 5 1 2 . 1 2 1 . Communications Jammed 14 | . . . . . . . . 3 . . . 1 . . . . 6 . . 3 . 1 . . . . . Distress Signals 13 | . . . . . . . . 3 . . . . . . . . 6 . . 3 . 1 . . . . . Times Spotted 477 | . 3 6 14 16 13 9 33 33 12 4 24 8 9 11 . 1 17 18 1 16 6 32 27 34 45 49 36 Peak Tracking Total 17 | . 3 2 3 7 4 3 4 6 5 2 15 5 6 5 . 1 7 7 1 6 3 5 8 17 7 6 9 Tactical Retreats 31 | . . 1 . 2 . . 2 3 . . 2 1 3 3 . . 4 2 . . . 4 1 . 1 . 2 Traps | -11 -10 -10 -10 -8 -8 -8 -6 -6 -6 -6 -6 -5 -5 -5 -5 -4 -4 -4 -4 -3 -3 -2 -2 -2 -1 -1 -1 ------- Run | Yrd Mat Min Sub Mat Sto Rec Fac Ext Cet Arc Hub Fac Upp Upp Zhi Pro Fac Arm Lab Res Qua Res Tes Frg Acc Com Ac0 Traps Triggered 20 | . 1 . . . 1 . 3 1 . . 1 2 . . . . 1 1 . 3 1 2 1 2 . . . Indirectly 2 | . . . . . . . 2 . . . . . . . . . . . . . . . . . . . . Trap Hack Attempts . | . . . . . . . . . . . . . . . . . . . . . . . . . . . . Triggered . | . . . . . . . . . . . . . . . . . . . . . . . . . . . . Disarmed 2 | . . . . . . . 2 . . . . . . . . . . . . . . . . . . . . Reprogrammed . | . . . . . . . . . . . . . . . . . . . . . . . . . . . . Reused 1 | . . . 1 . . . . . . . . . . . . . . . . . . . . . . . . Traps Extracted . | . . . . . . . . . . . . . . . . . . . . . . . . . . . . Installed 2 | . . . 2 . . . . . . . . . . . . . . . . . . . . . . . . Triggered . | . . . . . . . . . . . . . . . . . . . . . . . . . . . . Most Traps Carried 3 | . . 3 3 . . . . . . . . . . . . . . . . . . . . . . . . Machines | -11 -10 -10 -10 -8 -8 -8 -6 -6 -6 -6 -6 -5 -5 -5 -5 -4 -4 -4 -4 -3 -3 -2 -2 -2 -1 -1 -1 ---------- Run | Yrd Mat Min Sub Mat Sto Rec Fac Ext Cet Arc Hub Fac Upp Upp Zhi Pro Fac Arm Lab Res Qua Res Tes Frg Acc Com Ac0 Machines Disabled 113 | . . . 1 3 2 . 10 6 . 1 26 . . . . . . 13 2 4 8 4 9 1 11 5 7 Max in Single Turn 8 | . . . 1 1 1 . 6 2 . 1 8 . . . . . . 1 1 1 2 1 3 1 1 1 1 Garrison Access 3 | . . . . . . . . . . . 2 . . . . . . . . 1 . . . . . . . Network Hub 2 | . . . . . . . . . . . 2 . . . . . . . . . . . . . . . . Energy Cycler 1 | . . . . . . . . 1 . . . . . . . . . . . . . . . . . . . Machines Repaired . | . . . . . . . . . . . . . . . . . . . . . . . . . . . . Machines Dismantled . | . . . . . . . . . . . . . . . . . . . . . . . . . . . . Machines Sabotaged . | . . . . . . . . . . . . . . . . . . . . . . . . . . . . Overloaded Fab Kills . | . . . . . . . . . . . . . . . . . . . . . . . . . . . . Hacking | -11 -10 -10 -10 -8 -8 -8 -6 -6 -6 -6 -6 -5 -5 -5 -5 -4 -4 -4 -4 -3 -3 -2 -2 -2 -1 -1 -1 --------- Run | Yrd Mat Min Sub Mat Sto Rec Fac Ext Cet Arc Hub Fac Upp Upp Zhi Pro Fac Arm Lab Res Qua Res Tes Frg Acc Com Ac0 Machines Accessed 96 | . 1 1 1 1 3 13 11 9 3 . 4 4 . . 9 . 6 7 1 6 4 7 2 1 . . 2 Terminals 54 | . . . . 1 2 5 6 8 3 . 3 3 . . . . 6 6 . 1 2 5 2 1 . . . Fabricators 5 | . . . . . . . 2 . . . . . . . . . . 1 . 2 . . . . . . . Repair Stations 1 | . . . . . 1 . . . . . . . . . . . . . . . . . . . . . . Recycling Units 11 | . 1 . . . . 6 2 1 . . . . . . . . . . . 1 . . . . . . . Scanalyzers 7 | . . . . . . . 1 . . . . 1 . . . . . . . 1 2 2 . . . . . Garrison Access 2 | . . . . . . . . . . . 1 . . . . . . . . 1 . . . . . . . Total Hacks 290 | . 2 1 9 1 7 43 16 16 5 . 8 10 . . 48 . 28 17 4 16 7 25 2 1 . . 24 Successful 192 | . 1 1 9 1 5 40 6 4 2 . 4 4 . . 48 . 14 7 4 5 4 8 . 1 . . 24 Failed 98 | . 1 . . . 2 3 10 12 3 . 4 6 . . . . 14 10 . 11 3 17 2 . . . . Catastrophic 32 | . 1 . . . . . 5 1 . . 2 3 . . . . 4 4 . 5 1 5 1 . . . . Database Lockouts . | . . . . . . . . . . . . . . . . . . . . . . . . . . . . Manual 80 | . . . . . 6 7 8 8 1 . 6 5 . . . . 13 10 1 6 . 7 2 . . . . Terminals 129 | . . . . 1 4 8 9 14 5 . 7 7 . . . . 28 16 . 4 2 21 2 1 . . . Fabricators 7 | . . . . . . . 2 . . . . . . . . . . 1 . 4 . . . . . . . Repair Stations 3 | . . . . . 3 . . . . . . . . . . . . . . . . . . . . . . Recycling Units 17 | . 2 . . . . 8 2 2 . . . . . . . . . . . 3 . . . . . . . Scanalyzers 17 | . . . . . . . 3 . . . . 3 . . . . . . . 2 5 4 . . . . . Garrison Access 4 | . . . . . . . . . . . 1 . . . . . . . . 3 . . . . . . . Terminal Hacks 145 | . . 1 9 1 1 32 2 3 2 . 1 2 . . 48 . 4 4 4 . 1 5 . 1 . . 24 Record 90 | . . . 8 . . 25 . . 1 . . . . . 36 . . . 3 . . . . . . . 17 Part Schematic 5 | . . . . . . 1 . . . . . . . . 4 . . . . . . . . . . . . Robot Schematic 1 | . . . . . . 1 . . . . . . . . . . . . . . . . . . . . . Robot Analysis 6 | . . . . . . 2 . . . . . . . . 4 . . . . . . . . . . . . Prototype ID Bank 7 | . . . . . . 1 . . . . . . . . 4 . . 1 . . . 1 . . . . . Open Door 5 | . . 1 . . . . 1 1 1 . . . . . . . . . . . 1 . . . . . . Branch Access Points 1 | . . . . . . . . . . . . . . . . . 1 . . . . . . . . . . Alert Level 2 | . . . . . . . . . . . . 1 . . . . 1 . . . . . . . . . . Unreport Threat 4 | . . . . 1 . . . 2 . . . . . . . . . . . . . 1 . . . . . Locate Traps 5 | . . . . . . . . . . . 1 1 . . . . . 1 . . . 2 . . . . . Disarm Traps 1 | . . . . . . . 1 . . . . . . . . . . . . . . . . . . . . Transport Status 1 | . . . . . . . . . . . . . . . . . . . . . . 1 . . . . . Hauler Manifests 1 | . . . . . . . . . . . . . . . . . 1 . . . . . . . . . . Registered Components 1 | . . . . . . . . . . . . . . . . . . 1 . . . . . . . . . Zone Layout 3 | . . . . . 1 . . . . . . . . . . . 1 1 . . . . . . . . . Proto ID Catalog 2 | . . . 1 . . . . . . . . . . . . . . . . . . . . 1 . . . Release Object 3 | . . . . . . 2 . . . . . . . . . . . . 1 . . . . . . . . Gate Test 138-A 2 | . . . . . . . . . . . . . . . . . . . . . . . . . . . 2 Gate Test 138-B 2 | . . . . . . . . . . . . . . . . . . . . . . . . . . . 2 Gate Test 138-END 3 | . . . . . . . . . . . . . . . . . . . . . . . . . . . 3 Fabricator Hacks . | . . . . . . . . . . . . . . . . . . . . . . . . . . . . Repair Station Hacks 2 | . . . . . 2 . . . . . . . . . . . . . . . . . . . . . . Scan Component 1 | . . . . . 1 . . . . . . . . . . . . . . . . . . . . . . Repair 1 | . . . . . 1 . . . . . . . . . . . . . . . . . . . . . . Recycling Unit Hacks 6 | . 1 . . . . 3 2 . . . . . . . . . . . . . . . . . . . . Retrieve Matter 1 | . . . . . . 1 . . . . . . . . . . . . . . . . . . . . . Retrieve Components 5 | . 1 . . . . 2 2 . . . . . . . . . . . . . . . . . . . . Scanalyzer 9 | . . . . . . . 2 . . . . . . . . . . . . 2 3 2 . . . . . Insert Component 7 | . . . . . . . 1 . . . . . . . . . . . . 1 3 2 . . . . . Analyze 2 | . . . . . . . 1 . . . . . . . . . . . . 1 . . . . . . . Garrison Access Hacks 1 | . . . . . . . . . . . . . . . . . . . . 1 . . . . . . . Seal Access 1 | . . . . . . . . . . . . . . . . . . . . 1 . . . . . . . Unauthorized Hacks 29 | . . . . . 2 5 . 1 . . 3 2 . . . . 10 3 . 2 . 1 . . . . . Terminals 23 | . . . . . 1 1 . 1 . . 3 2 . . . . 10 3 . 1 . 1 . . . . . Track 2 | . . . . . 1 . . . . . . . . . . . . 1 . . . . . . . . . Botnet 13 | . . . . . . 1 . 1 . . 1 2 . . . . 4 2 . 1 . 1 . . . . . Operators 1 | . . . . . . . . . . . 1 . . . . . . . . . . . . . . . . Skim 7 | . . . . . . . . . . . 1 . . . . . 6 . . . . . . . . . . Fabricators 1 | . . . . . . . . . . . . . . . . . . . . 1 . . . . . . . Fabnet 1 | . . . . . . . . . . . . . . . . . . . . 1 . . . . . . . Repair Stations 1 | . . . . . 1 . . . . . . . . . . . . . . . . . . . . . . Mechanics 1 | . . . . . 1 . . . . . . . . . . . . . . . . . . . . . . Recycling Units 4 | . . . . . . 4 . . . . . . . . . . . . . . . . . . . . . Reject 4 | . . . . . . 4 . . . . . . . . . . . . . . . . . . . . . Scanalyzers . | . . . . . . . . . . . . . . . . . . . . . . . . . . . . Garrison Access . | . . . . . . . . . . . . . . . . . . . . . . . . . . . . Data Cores Recovered 14 | . . . . . . . . . . . . 1 . . . . 2 . . 1 2 1 3 2 2 . . Used 4 | . . . . . . . . . . . . . . . . . 1 . . . . 1 2 . . . . Hacking Detections 53 | . . . . . 2 4 7 7 2 . 4 3 . . . . 4 5 . 6 3 4 2 . . . . Full Trace Events 1 | . . . . . . . . . . . . . . . . . . . . 1 . . . . . . . Feedback Events . | . . . . . . . . . . . . . . . . . . . . . . . . . . . . Feedback Blocked . | . . . . . . . . . . . . . . . . . . . . . . . . . . . . Robot Schematics Acquired 11 | . . . . . . 1 . . . . . . . . . . . . . . 4 . 3 3 . . . Robots Built . | . . . . . . . . . . . . . . . . . . . . . . . . . . . . Authchips . | . . . . . . . . . . . . . . . . . . . . . . . . . . . . Time . | . . . . . . . . . . . . . . . . . . . . . . . . . . . . Total Robot Build Rating . | . . . . . . . . . . . . . . . . . . . . . . . . . . . . Part Schematics Acquired 31 | . . . . . . 1 1 . . . . . . . 4 . . . . 1 9 . 12 3 . . . Parts Built . | . . . . . . . . . . . . . . . . . . . . . . . . . . . . Authchips . | . . . . . . . . . . . . . . . . . . . . . . . . . . . . Time . | . . . . . . . . . . . . . . . . . . . . . . . . . . . . Total Part Build Rating . | . . . . . . . . . . . . . . . . . . . . . . . . . . . . Part Studies Acquired . | . . . . . . . . . . . . . . . . . . . . . . . . . . . . Parts Repaired 1 | . . . . . 1 . . . . . . . . . . . . . . . . . . . . . . Time 44 | . . . . . 44 . . . . . . . . . . . . . . . . . . . . . . Parts Recycled . | . . . . . . . . . . . . . . . . . . . . . . . . . . . . Recycled Matter . | . . . . . . . . . . . . . . . . . . . . . . . . . . . . Retrieved Matter . | . . . . . . . . . . . . . . . . . . . . . . . . . . . . Retrieved Components 12 | . 3 . . . . 5 4 . . . . . . . . . . . . . . . . . . . . Parts Scanalyzed 2 | . . . . . . . 1 . . . . . . . . . . . . 1 . . . . . . . Part Schematics Acquired 2 | . . . . . . . 1 . . . . . . . . . . . . 1 . . . . . . . Parts Damaged . | . . . . . . . . . . . . . . . . . . . . . . . . . . . . Bothacking | -11 -10 -10 -10 -8 -8 -8 -6 -6 -6 -6 -6 -5 -5 -5 -5 -4 -4 -4 -4 -3 -3 -2 -2 -2 -1 -1 -1 ------------ Run | Yrd Mat Min Sub Mat Sto Rec Fac Ext Cet Arc Hub Fac Upp Upp Zhi Pro Fac Arm Lab Res Qua Res Tes Frg Acc Com Ac0 Used RIF Installer . | . . . . . . . . . . . . . . . . . . . . . . . . . . . . Robots Hacked 2 | . . . . . . . . . . . . . . . . . . . . . . . 1 . . 1 . Non-combat . | . . . . . . . . . . . . . . . . . . . . . . . . . . . . Combat 1 | . . . . . . . . . . . . . . . . . . . . . . . 1 . . . . Robot Hacks Applied . | . . . . . . . . . . . . . . . . . . . . . . . . . . . . Manual 1 | . . . . . . . . . . . . . . . . . . . . . . . . . . 1 . Relay Couplers Released 2 | . . . . . . . . . . . 2 . . . . . . . . . . . . . . . . Machine Destruction 2 | . . . . . . . . . . . 2 . . . . . . . . . . . . . . . . Fabnet Peak Effective % 3 | . . . . . . . . . . . . . . . . . . . . . . 3 3 3 1 1 1 Autooverrided 1 | . . . . . . . . . . . . . . . . . . . . . . . 1 . . . . Robots Rewired 36 | . . . . . . 16 . 19 . . . . . . . . . 1 . . . . . . . . . Allies Hacked . | . . . . . . . . . . . . . . . . . . . . . . . . . . . . Hacks Repelled . | . . . . . . . . . . . . . . . . . . . . . . . . . . . . Allies | -11 -10 -10 -10 -8 -8 -8 -6 -6 -6 -6 -6 -5 -5 -5 -5 -4 -4 -4 -4 -3 -3 -2 -2 -2 -1 -1 -1 -------- Run | Yrd Mat Min Sub Mat Sto Rec Fac Ext Cet Arc Hub Fac Upp Upp Zhi Pro Fac Arm Lab Res Qua Res Tes Frg Acc Com Ac0 Total Allies 72 | . . . . . 10 16 . 23 5 . . . . . . . . 11 . . . . 1 . 3 3 . Largest Group 25 | . . . . . 10 25 25 19 19 17 14 . . . . . . 10 . . . . . . 3 3 . Highest-Rated Group 936 | . . . . . 173 416 416 641 936 927 655 . . . . . . 481 . . . . . . 379 376 . Highest-Rated Ally 159 | . . . . . 29 34 34 159 159 143 96 . . . . . . 58 . . . . . . 135 132 . Total Orders 17 | . . . . . . 7 . 2 4 . 1 . . . . . . . . . . 3 . . . . . STAY 5 | . . . . . . 2 . 1 1 . 1 . . . . . . . . . . . . . . . . ROAM 2 | . . . . . . . . . 2 . . . . . . . . . . . . . . . . . . FOLLOW 5 | . . . . . . 3 . 1 1 . . . . . . . . . . . . . . . . . . TUNNEL 1 | . . . . . . 1 . . . . . . . . . . . . . . . . . . . . . COLLECT 1 | . . . . . . 1 . . . . . . . . . . . . . . . . . . . . . EXPLORE 3 | . . . . . . . . . . . . . . . . . . . . . . 3 . . . . . Ally Attacks 529 | . . . . . . 57 113 84 72 16 96 . . . . . . 73 . . . . 1 . 14 3 . Total Damage 11239 | . . . . . . 774 1398 1930 1534 549 3121 . . . . . . 1639 . . . . 45 . 214 35 . Kills 73 | . . . . . . 6 15 11 10 3 19 . . . . . . 8 . . . . . . 1 . . Allies Corrupted 7 | . . . . . . . . . . . 4 . . . . . . 1 . . . 1 1 . . . . Allies Melted 1 | . . . . . . . . . . . 1 . . . . . . . . . . . . . . . . Intel | -11 -10 -10 -10 -8 -8 -8 -6 -6 -6 -6 -6 -5 -5 -5 -5 -4 -4 -4 -4 -3 -3 -2 -2 -2 -1 -1 -1 ------- Run | Yrd Mat Min Sub Mat Sto Rec Fac Ext Cet Arc Hub Fac Upp Upp Zhi Pro Fac Arm Lab Res Qua Res Tes Frg Acc Com Ac0 Active Infowar (turns) 8186 | . . . 569 . . . . 200 . 1 46 200 124 90 21 177 466 304 99 1041 329 1200 723 644 650 1137 165 Optics 887 | . . . . . . . . . . . . . . . . . . . . . . . . . . 887 . Sensors 4505 | . . . . . . . . . . . . . . . . . . . . 698 329 1200 721 644 650 263 . A.S.S. 829 | . . . . . . . . . . . . . . . . . 457 304 68 . . . . . . . . Terrain 569 | . . . 569 . . . . . . . . . . . . . . . . . . . . . . . . Cloaking 1313 | . . . . . . . . . . . . 115 38 . 21 177 112 24 . . . . . 486 175 . 165 Jamming 1656 | . . . . . . . . 200 . 1 46 85 86 90 . . 335 257 31 465 . 60 . . . . . ECM 2 | . . . . . . . . . . . . . . . . . . . . . . . 2 . . . . Robot Analysis Total 6 | . . . . . . 2 . . . . . . . . 4 . . . . . . . . . . . . Derelict Logs Recovered 9 | . . 2 1 . . . . . . . . . 1 3 . 2 . . . . . . . . . . . Drone Launches 3 | . . . . . . . . . . . . . . . . . . . . . . 3 . . . . . Drone Recoveries 1 | . . . . . . . . . . . . . . . . . . . . . . 1 . . . . . Exploration | -11 -10 -10 -10 -8 -8 -8 -6 -6 -6 -6 -6 -5 -5 -5 -5 -4 -4 -4 -4 -3 -3 -2 -2 -2 -1 -1 -1 ------------- Run | Yrd Mat Min Sub Mat Sto Rec Fac Ext Cet Arc Hub Fac Upp Upp Zhi Pro Fac Arm Lab Res Qua Res Tes Frg Acc Com Ac0 Turns Passed 20699 | 29 118 322 2687 259 563 3862 971 1815 799 152 444 286 124 165 51 177 466 304 131 1071 342 1339 977 673 674 1144 754 Spaces Moved 19602 | 33 119 273 1726 107 251 2019 735 1161 557 95 380 276 322 452 147 511 702 477 178 1384 523 1549 827 668 881 1995 1254 Core 6 | 6 . . . . . . . . . . . . . . . . . . . . . . . . . . . Treads 8658 | . . . . . . 314 . 286 . . . . . . . . . . . 958 523 952 827 668 881 1995 1254 Legs 615 | . . . . . . 46 . 59 . . . . . . . . . . . . . 510 . . . . . Wheels 3816 | 27 119 273 1726 107 251 1313 . . . . . . . . . . . . . . . . . . . . . Hover 1737 | . . . . . . 346 735 312 . . . . . . . . . . . 344 . . . . . . . Flight 4770 | . . . . . . . . 504 557 95 380 276 322 452 147 511 702 477 178 82 . 87 . . . . . Fastest Speed 32 | 50 80 95 95 131 131 80 89 91 91 91 91 41 32 32 32 32 32 32 32 32 46 46 48 48 48 48 48 Average Speed 72 | 74 90 95 135 150 145 120 98 107 91 91 91 85 33 32 32 32 32 32 32 38 46 54 59 48 48 48 48 Slowest Speed 230 | 80 95 95 230 230 165 215 144 169 91 91 91 91 41 32 32 32 32 32 32 46 46 81 62 48 48 48 48 Overloaded Moves . | . . . . . . . . . . . . . . . . . . . . . . . . . . . . Propulsion Burnouts . | . . . . . . . . . . . . . . . . . . . . . . . . . . . . Robots Hopped 11 | . . . . . . . . 5 . . 2 . . 1 . . 1 2 . . . . . . . . . Potential Cave-ins 4 | . . . . . . . . . . . . . . . . . . . . . 4 . . . . . . Cave-ins Triggered . | . . . . . . . . . . . . . . . . . . . . . . . . . . . . Teleports 3 | . . . . . . . . . . . . . . . . . . 1 . . . . . . . 1 1 Exploration Rate (%) 50 | 2 23 47 62 11 38 98 21 91 85 72 50 11 50 59 62 72 21 37 97 39 63 48 76 19 27 62 69 Regions Visited 27 Branch Regions 19 Pre-discovered Areas 8 | . . 2 1 . . . . . . . . . . . 3 2 . . . . . . . . . . . Known Exits Taken 11 | . . . 1 1 . . . . . . . . . . . . 1 1 1 1 1 1 1 1 1 . . Unknown Exits Taken 16 | 1 1 1 . . 1 1 1 1 1 1 1 1 1 1 1 1 . . . . . . . . . 1 . Scrap Searched 13 | . . 1 5 . . . . . . . . . 3 1 . 3 . . . . . . . . . . . Spaces Dug 144 | . . 1 . . . 6 2 1 . . 14 2 2 2 . . 36 21 . 14 4 2 4 10 11 7 5 Terrain Destroyed 765 | . . 1 12 7 43 6 36 18 5 1 341 7 4 6 . . 36 24 11 52 5 15 23 15 72 19 6 Melee 1 | . . . . . . 1 . . . . . . . . . . . . . . . . . . . . . Projectile 310 | . . 1 . . . 5 21 18 5 1 21 7 4 6 . . 36 24 11 36 5 15 21 15 33 19 6 AOE 454 | . . . 12 7 43 . 15 . . . 320 . . . . . . . . 16 . . 2 . 39 . . Terrain Rammed . | . . . . . . . . . . . . . . . . . . . . . . . . . . . . Walls Destroyed . | . . . . . . . . . . . . . . . . . . . . . . . . . . . . Machines Disabled . | . . . . . . . . . . . . . . . . . . . . . . . . . . . . Actions | -11 -10 -10 -10 -8 -8 -8 -6 -6 -6 -6 -6 -5 -5 -5 -5 -4 -4 -4 -4 -3 -3 -2 -2 -2 -1 -1 -1 --------- Run | Yrd Mat Min Sub Mat Sto Rec Fac Ext Cet Arc Hub Fac Upp Upp Zhi Pro Fac Arm Lab Res Qua Res Tes Frg Acc Com Ac0 Total 25063 | 35 126 312 2012 160 391 3419 926 1661 834 153 438 310 331 461 150 523 903 580 224 1833 589 1891 1190 940 1116 2204 1351 Wait 3027 | . . 12 155 1 73 1134 97 232 253 47 12 14 4 1 . 10 129 25 2 331 1 112 177 172 18 13 2 Move 19555 | 32 118 272 1725 106 250 2018 734 1152 556 94 375 275 321 449 146 510 699 473 177 1383 522 1548 826 667 880 1994 1253 Hop 8 | . . . . . . . . 3 . . 2 . . 1 . . 1 1 . . . . . . . . . Pick Up 169 | . 4 13 37 13 8 3 19 6 3 1 1 1 . . 1 1 3 . 4 3 14 13 5 3 5 4 4 Fast Attach 115 | 3 4 . 3 1 7 2 . 1 . . . 1 . . 1 . 4 2 6 10 8 24 19 2 4 11 2 Attach 47 | . . . 4 6 2 2 4 2 . . 2 . . . 1 . 1 . 2 1 1 3 2 . 5 4 5 Detach 24 | . . . . . 2 1 2 1 . . . . . . . . 1 . . 2 . 2 3 1 5 4 . Swap 87 | . . 1 14 2 3 1 . 10 1 4 6 5 1 1 . . 7 5 . 1 . 1 8 5 2 5 4 Drop 220 | . . 2 23 3 8 43 7 8 4 1 2 1 . . 1 1 13 1 5 12 7 30 23 5 5 13 2 Fire 1399 | . . 12 49 28 36 15 61 69 17 6 38 13 5 9 . 1 45 45 28 90 36 158 127 85 192 156 78 Melee 18 | . . . . . . 17 . . . . . . . . . . . . . . . . . . . . 1 Ram . | . . . . . . . . . . . . . . . . . . . . . . . . . . . . Kick . | . . . . . . . . . . . . . . . . . . . . . . . . . . . . Crush . | . . . . . . . . . . . . . . . . . . . . . . . . . . . . Escape Stasis . | . . . . . . . . . . . . . . . . . . . . . . . . . . . . Rewire 388 | . . . . . 2 181 . 177 . . . . . . . . . 28 . . . . . . . . . Trap 2 | . . . 2 . . . . . . . . . . . . . . . . . . . . . . . . Miscellaneous 4 | . . . . . . 2 2 . . . . . . . . . . . . . . . . . . . . Route ------- -11/Scrapyard -10/Materials -10/Mines (discovered 2 exits: [*Mat] / *Sub) -10/Subcaves (discovered 3 exits: *Mat x2 / [*Scr]) -8/Materials -8/Storage -8/Recycling -6/Factory -6/Extension (discovered 3 exits: *Fac x2 / *Cet) -6/Cetus (discovered 3 exits: *Fac x2 / [*Arc]) -6/Archives (discovered 2 exits: *Hub x2) -6/Hub_04(d) (discovered 3 exits: *Fac x3) -5/Factory -5/Upper Caves -5/Upper Caves -5/Zhirov -4/Proximity Caves -4/Factory (discovered 3 exits: *Upp x2 / *Arm) -4/Armory (discovered 2 exits: Res / *Lab) -4/Lab -3/Research (discovered 2 exits: *Res / *Qua) -3/Quarantine -2/Research (discovered 3 exits: *Acc / *Tes x2) -2/Testing (discovered 3 exits: *Acc / [*Sec] / *Frg) -2/Protoforge -1/Access (discovered 2 exits: *Sur / *Com) -1/Command (discovered 3 exits: *Sur x2 / *Ac0) -1/Access_0 Tau Ceti IV Orbit History --------- Turn | Location | Event 3 | -11/Scrapyard | Discovered new exit (range 15) 30 | -11/Scrapyard | Entered Materials 103 | -10/Materials | Discovered new exit (range 16) 148 | -10/Materials | Entered Mines 167 | -10/Mines | Discovered new exit (range 3) 172 | -10/Mines | Met a Derelict shopkeep closing up shop 250 | -10/Mines | Found a hidden stash of uninstalled traps 308 | -10/Mines | Build established: Mutant 334 | -10/Mines | Discovered new exit (range 9) 349 | -10/Mines | Found a Scrap Suit stashed away for nefarious purposes 382 | -10/Mines | Learned location of Zion (-7) 470 | -10/Mines | Entered Subcaves 471 | -10/Subcaves | Approached by a straggling Scientist 573 | -10/Subcaves | Shifting Twisted Machinery released Barrage Gun 575 | -10/Subcaves | Shifting Twisted Machinery released Sub. Shrapnel Launcher 606 | -10/Subcaves | Met a Zionite searching for "candidates" 627 | -10/Subcaves | A swath of the cavern ceiling suddenly collapsed 638 | -10/Subcaves | Discovered new exit (range 14) 673 | -10/Subcaves | Discovered new exit (range 9) 854 | -10/Subcaves | Identified exit to Materials 927 | -10/Subcaves | Disturbed a concealed Subdweller 1033 | -10/Subcaves | Disturbed a concealed Subdweller 1102 | -10/Subcaves | Shifting Twisted Machinery released Battle Cannon 1108 | -10/Subcaves | Shifting Twisted Machinery released Sub. Power Source 1410 | -10/Subcaves | Visited 4L-MR0's lab 1416 | -10/Subcaves | Found Prototype Device 1434 | -10/Subcaves | Found Gun Armor 1897 | -10/Subcaves | Core integrity fell below 50% 2204 | -10/Subcaves | Build established: Hauler-Mutant 3157 | -10/Subcaves | Entered Materials 3157 | -8/Materials | Evolved 4 slots: Propulsion x3, Weapon x1 3158 | -8/Materials | Identified exit to Storage 3242 | -8/Materials | Lost 3 parts (1p1n1w) 3416 | -8/Materials | Entered Storage 3635 | -8/Storage | Repaired Broken Sub. Monowheel 3728 | -8/Storage | Used back door to open Recycling access 3728 | -8/Storage | Discovered new exit (range 5) 3874 | -8/Storage | Assisted by bots powering up and referring to "LRC-V3" 3979 | -8/Storage | Entered Recycling 3979 | -8/Recycling | Accompanied by 10 allies 4167 | -8/Recycling | Build established: Commander-Gunner 5007 | -8/Recycling | Entered Scraplab 5110 | -8/Recycling | Discovered new exit (range 15) 5212 | -8/Recycling | Build established: Commander-Mutant 5762 | -8/Recycling | Found Prototype Device 5762 | -8/Recycling | Identified Scrap Engine 6547 | -8/Recycling | Build established: Commander-Construct 7841 | -8/Recycling | Entered Factory 7841 | -6/Factory | Accompanied by 25 allies 7841 | -6/Factory | Evolved 4 slots: Propulsion x1, Utility x2, Weapon x1 7878 | -6/Factory | Attached Gun Armor, gained temporary slots: Weapon x2 8153 | -6/Factory | Lost 17 allies 8521 | -6/Factory | Build established: Construct 8807 | -6/Factory | Discovered new exit (range 6) 8812 | -6/Factory | Entered Extension 8821 | -6/Extension | Disrupted transfer network 8872 | -6/Extension | Warlord forces began an assault 8955 | -6/Extension | Spotted B-75 Beast 9007 | -6/Extension | Spotted B-75 Beast 9009 | -6/Extension | Destroyed B-75 Beast 9034 | -6/Extension | Lost 3 allies 9260 | -6/Extension | Rescued a captive Derelict 9309 | -6/Extension | Rescued a captive Derelict 9311 | -6/Extension | Rescued a captive Derelict 9432 | -6/Extension | Rescued a captive Derelict 9699 | -6/Extension | Build established: Commander-Construct 9867 | -6/Extension | Energy Cycler disabled 9873 | -6/Extension | Rescued A7 9971 | -6/Extension | Lost 3 allies 10197 | -6/Extension | Discovered new exit (range 10) 10198 | -6/Extension | Discovered new exit (range 6) 10407 | -6/Extension | Discovered new exit (range 15) 10627 | -6/Extension | Entered Cetus 10627 | -6/Cetus | Accompanied by 19 allies (A7) 10632 | -6/Cetus | Acquired a Cetus Manufacturing Module code from A7 10652 | -6/Cetus | Spotted Cetus Guard 10652 | -6/Cetus | Destroyed Cetus Guard 10654 | -6/Cetus | Spotted Cetus Guard 10654 | -6/Cetus | Spotted Cetus Guard 10657 | -6/Cetus | Spotted Cetus Guard 10682 | -6/Cetus | Allies destroyed Cetus Guard 10684 | -6/Cetus | Allies destroyed Cetus Guard 10685 | -6/Cetus | Destroyed Cetus Guard 10714 | -6/Cetus | Lost 6 allies 10725 | -6/Cetus | Started Cetus Manufacturing Module 10731 | -6/Cetus | Escorted A7 to Cetus Mainframe 10742 | -6/Cetus | Discovered new exit (range 16) 10750 | -6/Cetus | Manufactured an Enhanced Grunt 10758 | -6/Cetus | Spotted Cetus Guard 10758 | -6/Cetus | Spotted Cetus Guard 10765 | -6/Cetus | Spotted Cetus Guard 10768 | -6/Cetus | Allies destroyed Cetus Guard 10775 | -6/Cetus | Manufactured an Enhanced Grunt 10776 | -6/Cetus | Spotted Cetus Guard 10779 | -6/Cetus | Allies destroyed Cetus Guard 10786 | -6/Cetus | Discovered new exit (range 16) 10792 | -6/Cetus | Met Revision 17 10800 | -6/Cetus | Manufactured an Enhanced Grunt 10825 | -6/Cetus | Manufactured an Enhanced Grunt 10850 | -6/Cetus | Manufactured an Enhanced Grunt 10961 | -6/Cetus | Discovered new exit (range 15) 11377 | -6/Cetus | Security sweep announced 11426 | -6/Cetus | Entered Archives 11426 | -6/Archives | Accompanied by 17 allies (A7) 11431 | -6/Archives | Received a hacking code to weaken MAIN.C 11498 | -6/Archives | Discovered new exit (range 16) 11504 | -6/Archives | Discovered new exit (range 16) 11578 | -6/Archives | Entered Hub_04(d) 11578 | -6/Hub_04(d) | Accompanied by 14 allies 11670 | -6/Hub_04(d) | Found Prototype Device 11690 | -6/Hub_04(d) | Lost 3 allies 11792 | -6/Hub_04(d) | Discovered new exit (range 13) 11826 | -6/Hub_04(d) | Discovered new exit (range 7) 11928 | -6/Hub_04(d) | First assault squad dispatched 11930 | -6/Hub_04(d) | Discovered new exit (range 6) 12003 | -6/Hub_04(d) | Network Hub disabled 12005 | -6/Hub_04(d) | Spotted Lightning 12005 | -6/Hub_04(d) | Spotted Lightning 12009 | -6/Hub_04(d) | Spotted Lightning 12020 | -6/Hub_04(d) | Network Hub disabled 12022 | -6/Hub_04(d) | Entered Factory 12022 | -5/Factory | Evolved 2 slots: Propulsion x1, Weapon x1 12039 | -5/Factory | Lost 3 allies 12192 | -5/Factory | Discovered new exit (range 16) 12208 | -5/Factory | Build established: Construct 12308 | -5/Factory | Entered Upper Caves 12374 | -5/Upper Caves | Learned Factory machine intel 12418 | -5/Upper Caves | Discovered new exit (range 14) 12432 | -5/Upper Caves | Entered another Upper Caves area 12433 | -5/Upper Caves | Learned Factory interactive machine intel 12471 | -5/Upper Caves | Learned 4 Factory zone layouts 12497 | -5/Upper Caves | Learned Factory interactive machine intel 12552 | -5/Upper Caves | Discovered new exit (range 11) 12597 | -5/Upper Caves | Entered Zhirov 12597 | -5/Zhirov | Discovered new exit (range 3) 12603 | -5/Zhirov | Met Zhirov 12610 | -5/Zhirov | Learned location of Quarantine (-3) 12610 | -5/Zhirov | Learned location of Testing (-2) 12610 | -5/Zhirov | Learned location of Command (-1) 12616 | -5/Zhirov | Zhirov requested help retrieving the SGEMP Prototype 12621 | -5/Zhirov | Found Alien Artifact 12621 | -5/Zhirov | Identified Integrated Reactor 12621 | -5/Zhirov | Installed Integrated Reactor, increased core energy generation (+10) 12629 | -5/Zhirov | Found Alien Artifact 12648 | -5/Zhirov | Entered Proximity Caves 12788 | -4/Proximity Caves | Discovered new exit (range 14) 12825 | -4/Proximity Caves | Entered Factory 12825 | -4/Factory | Evolved 2 slots: Utility x2 12827 | -4/Factory | Loaded intel: 243 machine locations 12828 | -4/Factory | Loaded intel: 54 interactive machine locations 12834 | -4/Factory | Identified Active Sensor Suite 12957 | -4/Factory | Identified exit to Upper Caves 12957 | -4/Factory | Identified exit to Armory 13240 | -4/Factory | Found Prototype Processor 13240 | -4/Factory | Identified Exp. Terrain Scan Processor 13253 | -4/Factory | Learned 4 Quarantine zone layouts 13291 | -4/Factory | Entered Armory 13387 | -4/Armory | Assisted by bots powering up and referring to "LRC-V3" 13480 | -4/Armory | Discovered new exit (range 15) 13485 | -4/Armory | Discovered new exit (range 3) 13486 | -4/Armory | Identified exit to Lab 13541 | -4/Armory | First assault squad dispatched 13584 | -4/Armory | Identified Transdimensional Reconstructor 13584 | -4/Armory | Warped through subspace to slip node 13595 | -4/Armory | Entered Lab 13595 | -4/Lab | Discovered new exit (range 9) 13598 | -4/Lab | Identified exit to Research 13600 | -4/Lab | Unable to decrypt terminal 13600 | -4/Lab | Opened the door to a hidden lab 13600 | -4/Lab | Detected by scanners 13601 | -4/Lab | Gained access to the hidden lab's interior 13609 | -4/Lab | Confronted by A5 13652 | -4/Lab | Destroyed A5 13666 | -4/Lab | Found Prototype Hackware 13668 | -4/Lab | Found Prototype Hackware 13675 | -4/Lab | Found Integrated Reactor 13675 | -4/Lab | Installed Integrated Reactor, increased core energy generation (+10) 13677 | -4/Lab | Found Alien Artifact 13677 | -4/Lab | Identified Core Expander 13677 | -4/Lab | Installed Core Expander, added new Power slot 13681 | -4/Lab | Found Transdimensional Reconstructor 13690 | -4/Lab | Found Prototype Protection 13690 | -4/Lab | Identified Exp. Powered Armor 13696 | -4/Lab | Found Prototype Hackware 13713 | -4/Lab | Unable to decrypt terminal 13726 | -4/Lab | Entered Research 13726 | -3/Research | Evolved 2 slots: Power x1, Propulsion x1 13926 | -3/Research | Revision forces began assault on 0b10 14009 | -3/Research | Met up with Revision 17++ 14024 | -3/Research | Identified Exp. System Shield 14188 | -3/Research | Found Prototype Launcher 14188 | -3/Research | Identified Adv. Micro-nuke Launcher 14256 | -3/Research | Intercept squad dispatched 14294 | -3/Research | Destroyed B-86 Titan 14426 | -3/Research | Research terminal network offline 14462 | -3/Research | Found Prototype Device 14462 | -3/Research | Identified Exp. Phase Shifter 14500 | -3/Research | Intercept squad dispatched 14571 | -3/Research | Lost 3 allies 14645 | -3/Research | Discovered new exit (range 9) 14659 | -3/Research | Intercept squad dispatched 14692 | -3/Research | Discovered new exit (range 11) 14778 | -3/Research | Identified exit to Quarantine 14797 | -3/Research | Entered Quarantine 14825 | -3/Quarantine | Found Alien Artifact 14825 | -3/Quarantine | Identified Terrabomb 14825 | -3/Quarantine | Used Terrabomb 14881 | -3/Quarantine | Met incapacitated Sigix Warrior 14881 | -3/Quarantine | Lockdown squad dispatched 14886 | -3/Quarantine | Found Sigix Containment Pod 14898 | -3/Quarantine | Found Alien Artifact 14915 | -3/Quarantine | Found Terrabomb 14921 | -3/Quarantine | Found Terrabomb 14964 | -3/Quarantine | Found Alien Artifact 14964 | -3/Quarantine | Identified Dimensional Node Initializer 14964 | -3/Quarantine | Initialized slip node 14969 | -3/Quarantine | Found Alien Artifact 14973 | -3/Quarantine | Found Transdimensional Reconstructor 15044 | -3/Quarantine | Discovered new exit (range 3) 15045 | -3/Quarantine | Identified exit to Research 15049 | -3/Quarantine | Found Alien Artifact 15081 | -3/Quarantine | Identified Core Reset Matrix 15081 | -3/Quarantine | Identified Hpw. Transdimensional Reconstructor 15081 | -3/Quarantine | Identified Subatomic Replicator 15139 | -3/Quarantine | Entered Research 15139 | -2/Research | Evolved 2 slots: Power x1, Utility x1 15148 | -2/Research | Identified Exp. Hacking Suite 15163 | -2/Research | Found Prototype Device 15163 | -2/Research | Identified Exp. Thermal Shield 15175 | -2/Research | Spotted B-90 Cyclops 15180 | -2/Research | Destroyed B-90 Cyclops 15198 | -2/Research | Found Quantum Capacitor 15222 | -2/Research | Discovered new exit (range 8) 15225 | -2/Research | Identified exit to Testing 15440 | -2/Research | Build established: Generator-Construct 15454 | -2/Research | Found Prototype Launcher 15454 | -2/Research | Identified Enh. Gamma Bomb Array 15572 | -2/Research | Destroyed 9 combat bots 15608 | -2/Research | Found Prototype Launcher 15608 | -2/Research | Identified Ragnarok Missile Launcher 15638 | -2/Research | Identified Quantum Router 15639 | -2/Research | First assault squad dispatched 15648 | -2/Research | Watched by a mysterious "MATRIX" hacker 15945 | -2/Research | Intercept squad dispatched 15945 | -2/Research | Destroyed 8 combat bots 15965 | -2/Research | Spotted Tracker 15965 | -2/Research | Destroyed Tracker 15966 | -2/Research | Spotted Tracker 15967 | -2/Research | Destroyed Tracker 15976 | -2/Research | Found Prototype Processor 15976 | -2/Research | Identified Exp. Targeting Computer 15989 | -2/Research | Spotted Combat Programmer 15991 | -2/Research | Destroyed Combat Programmer 15995 | -2/Research | Destroyed B-90 Cyclops 16009 | -2/Research | Spotted Combat Programmer 16010 | -2/Research | Destroyed Combat Programmer 16138 | -2/Research | Discovered new exit (range 9) 16143 | -2/Research | Identified exit to Access 16245 | -2/Research | Destroyed B-90 Cyclops 16287 | -2/Research | Found Prototype Device 16287 | -2/Research | Identified Exp. Actuator Array 16294 | -2/Research | Found Prototype Launcher 16294 | -2/Research | Identified Tactical Quantum Warhead 16314 | -2/Research | Garrison activated, responded to threat 16443 | -2/Research | Discovered exit to Testing (range 15) 16452 | -2/Research | Found Prototype Device 16452 | -2/Research | Identified System Purifier 16458 | -2/Research | Found System Purifier 16460 | -2/Research | Found Prototype Processor 16460 | -2/Research | Identified Spectral Analyzer 16468 | -2/Research | Found System Purifier 16478 | -2/Research | Entered Testing 16510 | -2/Testing | Spotted Superbehemoth 16520 | -2/Testing | Superbehemoth self-activated to run performance analysis 16540 | -2/Testing | Destroyed Superbehemoth 16577 | -2/Testing | Found Prototype Launcher 16577 | -2/Testing | Identified Com. Tesla Bomb Launcher 16698 | -2/Testing | Destroyed 7 combat bots 16717 | -2/Testing | Destroyed Striker 16722 | -2/Testing | Spotted Striker 16723 | -2/Testing | Destroyed Striker 16728 | -2/Testing | First assault squad dispatched 16743 | -2/Testing | Destroyed Alpha 7 16763 | -2/Testing | Found Prototype Device 16763 | -2/Testing | Identified Exp. ECM Suite 16773 | -2/Testing | Stole the SGEMP Prototype 16806 | -2/Testing | Build established: Construct 16824 | -2/Testing | Garrison activated, responded to threat 16845 | -2/Testing | Intercept squad dispatched 16845 | -2/Testing | Spotted Tracker 16846 | -2/Testing | Destroyed Tracker 16847 | -2/Testing | Spotted Tracker 16852 | -2/Testing | Destroyed Tracker 16854 | -2/Testing | Spotted Combat Programmer 16857 | -2/Testing | Spotted Combat Programmer 16866 | -2/Testing | Destroyed Combat Programmer 16869 | -2/Testing | Destroyed Combat Programmer 16876 | -2/Testing | Found Prototype Energy Gun 16876 | -2/Testing | Identified Immobilizer 16911 | -2/Testing | Discovered exit to Access (range 13) 16918 | -2/Testing | Found Prototype Device 16918 | -2/Testing | Identified Exp. Shock Absorption System 16920 | -2/Testing | Destroyed 12 combat bots 17174 | -2/Testing | Found Corrupted Prototype Ballistic Gun 17283 | -2/Testing | Spotted Fortress 17287 | -2/Testing | Destroyed Fortress 17299 | -2/Testing | Found Prototype Device 17299 | -2/Testing | Identified Thermal Barrier 17343 | -2/Testing | Discovered new exit (range 6) 17343 | -2/Testing | Discovered new exit (range 6) 17345 | -2/Testing | Identified exit to Protoforge 17455 | -2/Testing | Entered Protoforge 17557 | -2/Protoforge | Discovered exit to Access (range 8) 17633 | -2/Protoforge | Build established: Generator-Construct 17705 | -2/Protoforge | First assault squad dispatched 17854 | -2/Protoforge | Found Faulty Cep. Disintegration Ray 17922 | -2/Protoforge | Destroyed 9 combat bots 17989 | -2/Protoforge | Superfortress began startup sequence 18004 | -2/Protoforge | High security lockdown imminent 18004 | -2/Protoforge | Destroyed Superfortress 18013 | -2/Protoforge | Found Prototype Storage 18013 | -2/Protoforge | Identified Cep. Chromion Battery 18025 | -2/Protoforge | Found Exp. Force Field 18041 | -2/Protoforge | Found Cep. NT7 Matterbank 18072 | -2/Protoforge | Intercept squad dispatched 18073 | -2/Protoforge | Spotted Hotshot 18073 | -2/Protoforge | Spotted Hotshot 18073 | -2/Protoforge | Spotted Hotshot 18073 | -2/Protoforge | Spotted Hotshot 18084 | -2/Protoforge | High security lockdown engaged 18085 | -2/Protoforge | Spotted Tracker 18085 | -2/Protoforge | Destroyed Tracker 18086 | -2/Protoforge | Spotted Tracker 18087 | -2/Protoforge | Destroyed Tracker 18087 | -2/Protoforge | Spotted Combat Programmer 18097 | -2/Protoforge | Destroyed Combat Programmer 18128 | -2/Protoforge | Entered Access 18128 | -1/Access | Evolved 2 slots: Utility x2 18129 | -1/Access | Delivered the SGEMP Prototype to Zhirov 18129 | -1/Access | Zhirov transferred Access data 18130 | -1/Access | Loaded intel: 120 machine locations 18130 | -1/Access | Loaded intel: 102 trap records 18130 | -1/Access | Identified exit to Surface 18130 | -1/Access | Discovered exit to Surface (range 198) 18130 | -1/Access | Identified exit to Command 18130 | -1/Access | Discovered exit to Command (range 102) 18280 | -1/Access | Destroyed B-99 Colossus 18283 | -1/Access | Destroyed B-99 Colossus 18291 | -1/Access | Found Prototype Ballistic Gun 18291 | -1/Access | Identified Multirail 18296 | -1/Access | Found Multirail 18307 | -1/Access | Found Multirail 18378 | -1/Access | First assault squad dispatched 18437 | -1/Access | Destroyed B-99 Colossus 18449 | -1/Access | Zhirov warped through subspace 18528 | -1/Access | Destroyed 19 combat bots 18548 | -1/Access | Destroyed Striker 18550 | -1/Access | Destroyed Striker 18577 | -1/Access | Destroyed B-99 Colossus 18577 | -1/Access | Destroyed B-99 Colossus 18600 | -1/Access | Intercept squad dispatched 18621 | -1/Access | Spotted Tracker 18622 | -1/Access | Destroyed Tracker 18622 | -1/Access | Spotted Tracker 18623 | -1/Access | Destroyed Tracker 18634 | -1/Access | Spotted Combat Programmer 18637 | -1/Access | Destroyed Combat Programmer 18668 | -1/Access | Spotted Combat Programmer 18670 | -1/Access | Destroyed Combat Programmer 18698 | -1/Access | Destroyed 19 combat bots 18710 | -1/Access | High security lockdown imminent 18790 | -1/Access | High security lockdown engaged 18802 | -1/Access | Destroyed 18 combat bots 18802 | -1/Access | Entered Command 18930 | -1/Command | High security lockdown imminent 18949 | -1/Command | Build established: Construct 18977 | -1/Command | Destroyed 17 combat bots 19010 | -1/Command | High security lockdown engaged 19023 | -1/Command | Spotted Executioner 19024 | -1/Command | Destroyed Executioner 19024 | -1/Command | Spotted Executioner 19026 | -1/Command | Destroyed Executioner 19029 | -1/Command | Found Exp. Core Analyzer 19067 | -1/Command | Spotted M Guard 19071 | -1/Command | Spotted Combat Programmer 19071 | -1/Command | Destroyed Combat Programmer 19072 | -1/Command | Destroyed Combat Programmer 19078 | -1/Command | Spotted M Guard 19078 | -1/Command | Destroyed M Guard 19087 | -1/Command | Destroyed M Guard 19087 | -1/Command | All MAIN.C guards destroyed 19101 | -1/Command | Found Prototype Device 19101 | -1/Command | Identified AEGIS Remote Shield 19108 | -1/Command | Destroyed 7 combat bots 19236 | -1/Command | Spotted Striker 19244 | -1/Command | Spotted Investigator 19245 | -1/Command | Destroyed Investigator 19258 | -1/Command | Found Prototype Launcher 19258 | -1/Command | Identified Containment Facilitator 19267 | -1/Command | Destroyed Striker 19302 | -1/Command | Spotted Executioner 19302 | -1/Command | Spotted Executioner 19305 | -1/Command | Destroyed Executioner 19313 | -1/Command | Destroyed Executioner 19334 | -1/Command | Destroyed 27 combat bots 19345 | -1/Command | Met MAIN.C 19346 | -1/Command | Destroyed MAIN.C Shell 19347 | -1/Command | MAIN.C activated Command garrisons 19351 | -1/Command | Hacked MAIN.C using A7's code 19353 | -1/Command | Zhirov arrived to use SGEMP to disable MAIN.C 19353 | -1/Command | 0b10 Conduit disabled 19361 | -1/Command | Discovered exit to Surface (range 36) 19361 | -1/Command | Discovered exit to Surface (range 79) 19361 | -1/Command | Extracted map data and part IDs from MAIN.C's data core 19602 | -1/Command | Build established: Generator-Construct 19778 | -1/Command | Found Exp. System Purifier 19782 | -1/Command | Found Exp. EM Shield 19941 | -1/Command | Found Exp. Powered Armor 19942 | -1/Command | Warped through subspace to slip node 19942 | -1/Command | Discovered new exit (range 5) 19946 | -1/Command | Entered Access_0 19947 | -1/Access_0 | Met Architect 19951 | -1/Access_0 | Destroyed A8 19970 | -1/Access_0 | Used Terrabomb 19978 | -1/Access_0 | Found Integrated Mediator 19978 | -1/Access_0 | Installed Integrated Mediator, increased core attachment efficiency 20012 | -1/Access_0 | A6 warped into view 20013 | -1/Access_0 | Destroyed A6 20063 | -1/Access_0 | Subspace Access Node disabled 20071 | -1/Access_0 | Subspace Access Node disabled 20186 | -1/Access_0 | Subspace Access Node disabled 20213 | -1/Access_0 | Destroyed A2 20216 | -1/Access_0 | Extracted Singularity Gate Test 138-C access codes from A2's data core 20241 | -1/Access_0 | Architect warped through subspace 20297 | -1/Access_0 | A4 warped into view 20302 | -1/Access_0 | Destroyed A4 20340 | -1/Access_0 | Subspace Access Node disabled 20374 | -1/Access_0 | Found Exp. Phase Shifter 20394 | -1/Access_0 | Started Test 138-B, establishing a local singularity 20394 | -1/Access_0 | Started Test 138-B, establishing a local singularity 20396 | -1/Access_0 | Singularity Gate disabled 20399 | -1/Access_0 | Destroyed Architect 20403 | -1/Access_0 | Extracted unknown sensor trigger ID from Architect's data core 20663 | -1/Access_0 | A3 warped into view 20666 | -1/Access_0 | Destroyed A3 20679 | -1/Access_0 | Found Sigix Corpse 20682 | -1/Access_0 | Used Subatomic Replicator to replicate Sigix Containment Pod 20694 | -1/Access_0 | Warped through subspace to slip node 20694 | -1/Access_0 | Discovered exit to Surface (range 8) 20700 | *** | Destroyed 0b10! Last Messages --------------- 20666_ A3 destroyed. 20675_ Analysis Chamber breached. 20679_ Acquired Sigix Corpse. 20681_ Dropped Sigix Containment Pod. 20682_ Replicated Sigix Containment Pod. 20683_ Sigix Containment Pod: "ZVPTKWGIWG MFDVFEKHCSXU TQI ON GBWQ JOYSTLHAMEL" 20683_ Sigix Containment Pod: "Q BVHXLF" 20684_ Acquired Sigix Containment Pod. 20693_ Dropped Hpw. Transdimensional Reconstructor. 20693_ Acquired Hpw. Transdimensional Reconstructor. 20694_ Warped through subspace, drawn to slip node. 20694_ EXIT=FOUND: SURFACE [Achievement: Force of Scrap] [Achievement: 75k Club] [Achievement: 100k Club] [Achievement: 150k Club] Map ----- +----------------------------------------------------+ | | | | | | | | | | | | | | | | | | | | | | | | | | | | | | | | | ?????????????????????????????????????????????????? | | ?????????????????????????????????????????????????? | | ?????????????????????????????????????????????????? | | ?????????????????????????????????????????????????? | | ?????????????????????????????????????????????????? | | ?????????????????????????????????????????????????? | | ????????????????????????###??????????????????????? | | ???????????????????????## ##?????????????????????? | | ???????????????????????# #?????????????????????? | | ???????????????????????# @ #?????????????????????? | | ??????????????????????## #?????????????????????? | | ??????????????????????# #?????????????????????? | | ??????????????????????# ##?????????????????????? | | ??????????????????????## #?????????????????????? | | ??????????????????????# #?????????????????????? | | ??????????????????????# ##?????????????????????? | | ??????????????????????# < #?????????????????????? | | ??????????????????????# ##?????????????????????? | | ??????????????????????## #??????????????????????? | | ???????????????????????####??????????????????????? | | ?????????????????????????????????????????????????? | | ?????????????????????????????????????????????????? | | ?????????????????????????????????????????????????? | | ?????????????????????????????????????????????????? | | ?????????????????????????????????????????????????? | | ?????????????????????????????????????????????????? | | ?????????????????????????????????????????????????? | | ?????????????????????????????????????????????????? | | ?????????????????????????????????????????????????? | | ?????????????????????????????????????????????????? | | ?????????????????????????????????????????????????? | | ?????????????????????????????????????????????????? | | ?????????????????????????????????????????????????? | | ?????????????????????????????????????????????????? | +----------------------------------------------------+ Best States ------------- Heat Dissipation 118 Coolant Potential 100 Energy Generation 140 Energy Capacity 4006 Matter Stores 300 Matter Capacity 300 Sight Range 23 Robot Scan Range 20 Terrain Scan Range 16 Terrain Scan Density 10 Jamming Range 16 Cloak Strength 4 EM Shielding 4 Armor Coverage 800 Resistance: TH 50 Resistance: EX 75 Resistance: EM 75 Phase Shifting 20 Evasion (%) 70 Targeting Accuracy 20 Core Analysis 8 Armor Integrity Analysis 40 Recoil Reduction 8 Kinecelleration 40 Item Schematics ----------------- Minigun | -8/Recycling | Hacked Multitool | -6/Factory | Scanalyzed Assault Drone Bay | -5/Zhirov | Free Exp. Heat Sink | -5/Zhirov | Free Exp. Optical Array | -5/Zhirov | Free Imp. Arc Thrower | -5/Zhirov | Free Exp. System Shield | -3/Research | Scanalyzed Cld. Proton Cannon | -3/Quarantine | Archive Cld. Antimatter Reactor | -3/Quarantine | Archive Helical Railgun | -3/Quarantine | Archive Exp. Shield Generator | -3/Quarantine | Archive Exp. Thermal Generator | -3/Quarantine | Archive Hvy. Gatling Laser | -3/Quarantine | Archive Lgt. Neutrino Core | -3/Quarantine | Archive Exp. Coolant Injector | -3/Quarantine | Archive Enh. Armored Medium Treads | -3/Quarantine | Archive Adv. Plasma Rifle | -2/Testing | Archive Hvy. Neutron Cannon | -2/Testing | Archive Nanosword | -2/Testing | Archive Com. Linear Accelerator | -2/Testing | Archive Hvy. Antimatter Reactor | -2/Testing | Archive Exp. Terrain Scan Processor | -2/Testing | Archive Exp. Shock Absorption System | -2/Testing | Archive Cld. Nuclear Pulse Thruster | -2/Testing | Archive Imp. Matter Compressor | -2/Testing | Archive Exp. Focal Shield | -2/Testing | Archive Exp. Core Analyzer | -2/Testing | Archive Exp. Reaction Control System | -2/Testing | Archive Exp. Sensor Array | -2/Protoforge | Archive Adv. Dynamic Insulation System | -2/Protoforge | Archive Centrium Heavy Treads | -2/Protoforge | Archive Robot Schematics ------------------ T-07 Excavator | -8/Recycling | Hacked A-27 Freighter | -3/Quarantine | Archive L-61 Swordsman | -3/Quarantine | Archive S-43 Plague | -3/Quarantine | Archive A-02 Transporter | -3/Quarantine | Archive G-73 Enforcer | -2/Testing | Archive R-06 Scavenger | -2/Testing | Archive Y-72 Warden | -2/Testing | Archive H-77 Assassin | -2/Protoforge | Archive G-67 Veteran | -2/Protoforge | Archive A-15 Conveyor | -2/Protoforge | Archive Fabricated ------------ Nothing Repaired ---------- Sub. Monowheel | 65% | -8/Storage | Broken Studied --------- None Alien Tech Used ----------------- Integrated Reactor Transdimensional Reconstructor Core Expander Terrabomb Dimensional Node Initializer Integrated Mediator Subatomic Replicator High-powered Transdimensional Reconstructor Achievements -------------- 100k Club 150k Club 75k Club Bigger Is Better Force of Scrap Monstrosity Not So Scrappy Out Of My Way Spot Them First Challenges ------------ None Game ------ Seed InterceptDispersalCloak Manual? 1 Play Time 06:29:46 Cumulative 473.5 hours Start 2026.07.25 @ 19:58:18 End 2026.07.27 @ 01:45:13 Sessions 27 Manual Loads 0 Difficulty Rogue Special Mode None Game No. 239 Rogue 235 Adventurer 0 Explorer 4 Win Type 3 Total 26 Types 9/1/2/6/1/2/3/1/1/0 Lore% 69 Gallery% 74 Achievement% 57 Wizard Run 0 Options --------- Layout 1 ASCII 0 Keyboard 0 Movement Mouse Keybinds 0 Fullscreen 1 Font 24/Smallcaps Map View 50x35 Zoom Use 0% Tactical HUD 1 Map Filters NONE Filters NONE Steam 1 RUN: d5edc49e-22f3-45ac-8112-3f42803abfd4